Cogmind - Beta 16 @@@ ROGUE MODE // 2025.11.14 @ 00:18:16 Player: Darcyisverycute Result: Establishing 0b11! Performance ------------- Evolutions (9) 4500 Regions Visited (23) 4600 Robots Destroyed (550) 2750 Value Destroyed (36499) 36499 Prototype IDs (366) 7320 Alien Tech Used (8) 1600 Bonus (83886) 83886 TOTAL SCORE: 141155 Bonus ------- Triggered High Security 1000 High Alert Combat Kills 18461 Follower Combat Kills 2301 Network Hubs Disabled 200 Registered with UFD 300 Met Optimus in HQ 500 Met R17 at Cetus 500 Found Hidden Lab 3000 Hacked Protovariant 500 Met R17 at Research 2000 Scanned by Researcher 500 Met Optimus at Protoforge 1000 Executed Drillbomb Mission 10000 Recovered Sigix Corpse 2000 Destroyed MAIN.C Guards 500 Met MAIN.C 5000 Destroyed MAIN.C Shell 5000 Destroyed MAIN.C 10000 Met Architect 300 Destroyed A8 300 Destroyed A6 400 Destroyed A5 500 Destroyed A4 700 Destroyed A3 800 Destroyed A2 1000 Destroyed Architect 15000 Win 3000 Friendly Fire -876 Cogmind --------- Core Integrity 62/1600 Matter 300/300 Energy 2682/2700 System Corruption 3% Temperature Cool (36) Movement Hovering (38) Location 0b11 Command Parts ------- > --- POWER (3) -------- Experimental Antimatter Reactor Experimental Antimatter Reactor Hybrid Graviton Reactor > --- PROPULSION (8) --- Combat Antigrav System Combat Linear Gravjet Combat Linear Gravjet Experimental Antigrav System Gravjet Array Concept Gyrokinetic System Concept Gyrokinetic System > --- UTILITY (11) ----- Desublimator 2N-1CE's Frost Array Concept Antigrav Storage Unit Experimental Optical Array Experimental Targeting Computer Concept Weapon Articulator Experimental Core Analyzer Experimental Armor Integrity Analyzer Centrium Heavy Armor Plating > --- WEAPON (3) ------- Concept Disintegration Ray > --- INVENTORY (25) --- Zero-point Reactor Zero-point Reactor Combat Linear Gravjet Advanced Power Amplifier Concept NT7 Matterbank (750) Experimental Targeting Computer Quantum Capacitor Experimental Weapon Cycler Experimental Weapon Cycler Experimental Phase Shifter Improved Weapon Shielding Graphene Brace Experimental Shield Generator Advanced Force Field Compact HERF Cannon Concept Plasma Driver Hypervelocity Linear Accelerator Concept Miniperforator Concept Heavy Railcannon Sigix Corpse Peak State ------------ > --- POWER ------------ Experimental Antimatter Reactor Hybrid Graviton Reactor Concept Zero-point Core > --- PROPULSION ------- Cooled Linear Gravjet Combat Linear Gravjet Combat Linear Gravjet Experimental Antigrav System Experimental Antigrav System Experimental Antigrav System Concept Gyrokinetic System Concept Gyrokinetic System > --- UTILITY ---------- 2N-1CE's Frost Array Concept Antigrav Storage Unit Experimental Optical Array Experimental Active Sensor Suite Experimental Core Analyzer Experimental Armor Integrity Analyzer Concept Cloak Mesh Graphene Brace Improved Hacking Suite Concept Matter Streamer > --- WEAPON ----------- Concept Disintegration Ray Concept Plasma Driver Concept Miniperforator > --- INVENTORY -------- Experimental Antimatter Reactor Gravjet Array Advanced Power Amplifier Concept NT7 Matterbank Concept Weapon Articulator Precision Energy Filter Experimental Kinecellerator Launcher Loader Advanced Transmission Jammer Concept Reaction Jets Heavy Regenerative Plating Experimental Remote Shield Concept Antimissile System Transdimensional Reconstructor Helical Railgun Concept Heavy Railcannon Guided EMP Blaster [Rating: 282] Favorites ----------- Power Experimental Antimatter Reactor Engine Subdweller Power Source Power Core Light Neutrino Core Reactor Experimental Antimatter Reactor Propulsion Combat Linear Gravjet Treads Light Treads Leg Enhanced Armored Leg Wheel Subdweller Monowheel Hover Unit Combat Linear Gravjet Flight Unit Nuclear Pulse Array Utility Advanced Hacking Suite Device 2N-1CE's Frost Array Storage Medium Storage Unit Processor Experimental Armor Integrity Analyzer Hackware Advanced Hacking Suite Protection Heavy Regenerative Plating Weapon Axe Energy Gun Medium Laser Energy Cannon Concept Plasma Driver Ballistic Gun Subdweller Machine Gun Ballistic Cannon Concept Miniperforator Launcher Guided EMP Blaster Special Weapon Guided Remote Datajack Slashing Weapon Axe Special Melee Weapon Advanced Datajack Build | -11 -10 -10 -7 -5 -5 -5 -5 -5 -5 -5 -4 -4 -4 -4 -4 -3 -3 -2 -2 -2 -1 -1 -1 ------- Run | Yrd Mat Sub Scr Fac Was Fac Ext Cet Arc Hub Fac Was Fac Arm Lab Res Qua Res Tes Frg Acc Com Ac0 Slots Evolved 18 | . . . . 10 . . . . . . 2 . . . . 2 . 2 . . 2 . . Power 2 | . . . . 1 . . . . . . . . . . . . . . . . 1 . . Propulsion 6 | . . . . 4 . . . . . . . . . . . 1 . 1 . . . . . Utility 9 | . . . . 5 . . . . . . 2 . . . . 1 . 1 . . . . . Weapon 1 | . . . . . . . . . . . . . . . . . . . . . 1 . . Parts Attached 305 | 8 2 4 9 7 1 30 14 10 8 12 39 5 19 33 . 16 1 3 8 43 3 18 12 Power 31 | 1 . 1 1 . . 4 3 2 . . 7 1 1 2 . . . 1 . 5 1 1 . Engine 5 | 1 . 1 1 . . 1 1 . . . . . . . . . . . . . . . . Core 10 | . . . . . . 3 2 . . . 2 . . 2 . . . . . 1 . . . Reactor 16 | . . . . . . . . 2 . . 5 1 1 . . . . 1 . 4 1 1 . Propulsion 77 | 2 . 1 3 . . 16 4 2 1 6 8 2 5 7 . 7 . 1 2 6 1 2 1 Treads 6 | 2 . . . . . . . 2 1 . . . 1 . . . . . . . . . . Leg 14 | . . . 1 . . 2 . . . 6 5 . . . . . . . . . . . . Wheel 1 | . . 1 . . . . . . . . . . . . . . . . . . . . . Hover 45 | . . . . . . 7 2 . . . 3 2 4 7 . 7 . 1 2 6 1 2 1 Flight 11 | . . . 2 . . 7 2 . . . . . . . . . . . . . . . . Utility 134 | 2 1 1 1 6 1 8 2 4 6 2 11 2 12 20 . 5 1 1 5 22 1 10 10 Device 71 | 2 . . . 2 . 2 1 . 6 1 9 1 9 3 . 3 1 1 4 14 . 7 5 Storage 5 | . 1 1 . . . . . . . . . . . 2 . . . . . 1 . . . Processor 15 | . . . . 2 1 1 . 1 . . . 1 1 . . . . . . 4 . 1 3 Hackware 29 | . . . . 2 . 5 1 . . . 2 . 2 14 . 1 . . 1 . 1 . . Protection 14 | . . . 1 . . . . 3 . 1 . . . 1 . 1 . . . 3 . 2 2 Artifact . | . . . . . . . . . . . . . . . . . . . . . . . . Weapon 63 | 3 1 1 4 1 . 2 5 2 1 4 13 . 1 4 . 4 . . 1 10 . 5 1 Energy Gun 10 | 2 . . . . . . . 1 . . 5 . . . . 1 . . . 1 . . . Energy Cannon 13 | . . . 1 . . . 1 . . . 2 . 1 1 . 1 . . . 2 . 4 . Ballistic Gun 16 | 1 . 1 . . . . 1 1 1 1 4 . . . . . . . 1 4 . 1 . Ballistic Cannon 6 | . 1 . . . . . 1 . . . . . . . . . . . . 3 . . 1 Launcher 10 | . . . . . . 2 1 . . 3 1 . . 3 . . . . . . . . . Special Weapon 3 | . . . 2 . . . . . . . . . . . . 1 . . . . . . . Impact Weapon . | . . . . . . . . . . . . . . . . . . . . . . . . Slashing Weapon 3 | . . . 1 . . . 1 . . . . . . . . 1 . . . . . . . Piercing Weapon . | . . . . . . . . . . . . . . . . . . . . . . . . Special Melee Weapon 2 | . . . . 1 . . . . . . 1 . . . . . . . . . . . . Unidentified Prototypes 33 | . . . . . . 5 . 4 . 3 1 . . . . 4 . . 3 9 1 1 2 Corrupted Parts 8 | . . . . . . . 3 1 . 2 . . . . . . . . . . . 2 . System Corruption 41 | . . . . . . . 15 8 . 7 . . . . . . . . . . . 11 . Parts Lost 69 | . . 7 . . . 5 9 1 1 2 22 . 2 1 . 2 . . 1 4 1 5 6 Power 11 | . . 1 . . . 1 2 1 . . 4 . . . . . . . . 1 . 1 . Propulsion 19 | . . 2 . . . 1 4 . 1 . 6 . 1 1 . . . . . . . 1 2 Utility 21 | . . 1 . . . 2 2 . . . 5 . 1 . . 2 . . 1 2 . 2 3 Weapon 18 | . . 3 . . . 1 1 . . 2 7 . . . . . . . . 1 1 1 1 Highest Loss Streak 5 | . . 2 . . . 2 4 1 1 2 5 . 1 1 . 1 . . 1 3 1 4 2 To Critical Strikes 3 | . . . . . . . 1 . . . . . . . . . . . . . . . 2 Average Backups 14 | 1 9 11 17 7 7 7 8 9 8 9 8 7 8 11 16 16 16 16 16 19 19 17 20 Power . | . . 2 1 . . . . . . . . 1 . . . . . . . 1 1 . 2 Propulsion . | . . . . . . 1 1 . . . . . . . 1 2 2 1 1 1 1 1 1 Utility 6 | . 4 5 6 3 3 3 5 6 5 3 5 4 5 8 9 5 4 5 5 8 11 9 9 Weapon 3 | . 3 2 4 2 2 1 2 2 3 4 1 1 2 2 4 4 4 4 4 5 5 4 5 Tool/Special . | . . . . . . . . . . . . . . . . . . . . . . . . Unused Backups 90 | . 1 2 30 1 9 3 2 5 . 1 1 . 4 . 2 1 4 . 4 7 1 3 9 Power 10 | . 1 . 5 . 1 . . . . . . . . . . . . . . 1 . . 2 Propulsion 6 | . . . 1 . 1 . . . . . . . . . 1 . . . 1 . 1 . 1 Utility 44 | . . 1 13 1 5 1 1 3 . 1 . . 3 . . 1 3 . 1 3 . 2 5 Weapon 25 | . . 1 8 . 2 1 1 2 . . 1 . 1 . 1 . 1 . 2 2 . 1 1 Tool/Special 5 | . . . 3 . . 1 . . . . . . . . . . . . . 1 . . . Average Slot Usage (%) 84 | . 98 86 77 47 50 83 79 80 87 95 93 76 86 91 88 91 95 89 93 88 90 84 81 Engine 4 | . 14 9 13 . . 1 . . . . . . . . . . . . . . . . . Core 1 | . . . . . . 8 8 5 . . . . 2 3 10 9 9 5 4 2 4 . . Reactor 3 | . . . . . . . . 2 11 11 9 4 6 6 . . . 2 4 5 7 9 12 Treads 5 | . 28 18 12 . . . . 5 15 5 . . . . . . . . . . . . . Leg 3 | . . . 5 . . . . . . 24 28 . . . . . . . . . . . . Hover 14 | . . . . . . 7 3 4 . . . 21 27 30 31 32 33 33 34 34 32 28 27 Flight 2 | . . . 2 11 11 15 15 11 5 1 . . . . . . . . . . . . . Device 10 | . 13 11 . 4 . 4 4 . 4 . 12 26 23 13 14 14 14 14 16 18 18 20 15 Storage 7 | . 13 14 13 5 5 5 5 5 5 5 5 5 5 5 5 4 4 4 4 4 4 3 4 Processor 5 | . . . . 2 16 6 5 10 7 5 5 5 5 8 5 4 4 4 4 9 12 12 12 Hackware 5 | . . . . 10 11 21 22 17 17 17 17 5 8 12 15 15 14 13 12 . 2 . . Protection 3 | . . . 6 . . . . 4 4 10 3 . 1 3 . 1 4 2 3 4 1 1 5 Energy Gun 2 | . 1 11 6 . . . . . . . 4 . . . . 1 . . . . . . . Energy Cannon 1 | . . . . . 1 2 3 . . . . 5 2 2 5 2 3 3 3 1 3 3 1 Ballistic Gun 3 | . 14 11 5 . . . . . 10 7 1 . . . . . . . . 1 1 . . Ballistic Cannon 1 | . 12 3 . . . . . . . . . . . . . . . . . 1 1 3 1 Slashing Weapon 2 | . . . 8 3 . 4 2 . . . . . . . . . 1 1 . . . . . Peak Build Rating 282 | 9 9 12 27 39 38 88 100 123 127 132 131 106 122 130 124 168 169 188 191 264 282 273 275 Average Rating 113 | 5 7 8 16 26 31 75 87 107 121 122 113 89 105 117 120 151 164 181 184 229 268 258 246 On Entrance 112 | . 9 8 9 22 39 31 88 95 123 127 105 107 96 114 122 124 163 166 186 187 238 270 261 Avg Prop Armor Cover (%) 5 | . . 14 8 . 20 8 4 3 1 . 4 3 3 . . . . 1 . . 2 1 . Naked Turns . | . . . . . . . . . . . . . . . . . . . . . . . . Heaviest Build 147 | 11 21 91 106 27 10 35 48 72 76 83 86 43 71 88 88 103 99 110 113 134 118 147 132 Greatest Support 188 | 40 40 40 20 10 10 64 52 160 188 188 136 43 71 84 84 115 115 130 130 131 131 130 130 Greatest Overweight (x) 11 | . . 4 11 2 3 . 2 1 . 1 1 . 2 1 1 . . 1 . 1 1 1 1 Average Overweight (x) . | . . 1 3 1 . . . . . . . . . . . . . . . . . . . Largest Inventory Capacity 25 | 5 10 25 25 10 10 10 10 10 10 10 10 10 10 20 20 20 20 20 20 25 25 25 25 Average Capacity 18 | 5 9 16 23 10 10 10 10 10 10 10 10 10 10 13 20 20 20 20 20 23 25 20 25 Most Carried 25 | 4 10 14 25 10 10 10 10 10 10 10 10 10 10 20 20 20 20 20 20 25 25 25 25 Average Carried 16 | 1 9 11 19 9 9 9 9 9 9 9 9 9 9 12 19 19 19 19 19 22 24 19 22 Final Capacity 25 | 5 10 25 10 10 10 10 10 10 10 10 10 10 10 20 20 20 20 20 20 25 25 25 25 Final Carried 25 | 4 10 14 10 10 10 10 10 10 10 10 10 10 10 19 20 20 20 20 20 25 25 25 22 Class Distribution -------------------- 39% | Mutant 22% | Hacker-Mutant 7% | Scavenger-Mutant 5% | Scavenger-Gunner 5% | Machinist-Scout 3% | Scout 3% | Wizard-Mutant Dominant Class ---------------- Mutant | -10/Materials Mutant | -10/Subcaves Mutant | -7/Scraptown Hacker-Mutant | -5/Factory Hacker-Mutant | -5/Waste Hacker-Mutant | -5/Factory Hacker-Mutant | -5/Extension Hacker-Mutant | -5/Cetus Scavenger-Mutant | -5/Archives Hacker-Mutant | -5/Hub_04(d) Wizard-Mutant | -4/Factory Mutant | -4/Waste Hacker-Mutant | -4/Factory Machinist-Scout | -4/Armory Machinist-Mutant | -4/Lab Hacker-Mutant | -3/Research Hacker-Mutant | -3/Quarantine Hacker-Mutant | -2/Research Hacker-Mutant | -2/Testing Machinist-Scout | -2/Protoforge Scavenger-Scout | -1/Access Scavenger-Gunner | -1/Command Scavenger-Mutant | -1/Access_0 Resources | -11 -10 -10 -7 -5 -5 -5 -5 -5 -5 -5 -4 -4 -4 -4 -4 -3 -3 -2 -2 -2 -1 -1 -1 ----------- Run | Yrd Mat Sub Scr Fac Was Fac Ext Cet Arc Hub Fac Was Fac Arm Lab Res Qua Res Tes Frg Acc Com Ac0 Matter Collected 23550 | 141 390 533 77 80 . 454 664 232 490 312 850 165 1382 1430 . 1036 25 220 195 8134 348 3661 2731 Remotely 5293 | . . . . . . . . . . . . . 572 370 . 145 . . . 3613 348 245 . Salvage Created 34678 | 165 341 334 359 . . 516 1178 186 581 532 2441 257 1973 1660 . 1397 40 205 358 9783 367 8542 3463 Parts 1576 | 14 32 24 7 . . 27 37 4 41 25 122 1 83 77 . 63 4 12 10 439 21 338 195 Haulers Intercepted 2 | . 1 . . . . . . . . . . . . . . 1 . . . . . . . Recyclers Shooed 5 | 1 . . . . . . 1 . . . . . 3 . . . . . . . . . . Parts Field Recycled 22 | . . . . . . . . . . . 22 . . . . . . . . . . . . Retrieved Matter 418 | . . . . . . . . . . . 418 . . . . . . . . . . . . Parts Self-Destructed 15 | . . 8 7 . . . . . . . . . . . . . . . . . . . . Prevented 2 | . . 2 . . . . . . . . . . . . . . . . . . . . . Parts Restored 3 | . . . . . . . . . . . . . . . . . . . . 3 . . . Faulty 3 | . . . . . . . . . . . . . . . . . . . . 3 . . . Kills | -11 -10 -10 -7 -5 -5 -5 -5 -5 -5 -5 -4 -4 -4 -4 -4 -3 -3 -2 -2 -2 -1 -1 -1 ------- Run | Yrd Mat Sub Scr Fac Was Fac Ext Cet Arc Hub Fac Was Fac Arm Lab Res Qua Res Tes Frg Acc Com Ac0 Combat Hostiles Destroyed 460 | . 17 9 . . . 4 21 2 3 7 45 1 23 24 . 14 . 1 4 159 7 76 43 Melee 10 | . . . . . . 3 5 . . . . . . . . . . . . 2 . . . Guns 33 | . . 6 . . . . . . 3 1 17 . . . . . . . . 6 . . . Cannons 160 | . 17 3 . . . . 1 . . . 4 . 4 5 . 3 . . . 74 4 8 37 AOE 141 | . . . . . . 1 15 . . 2 15 . 10 11 . 6 . . 1 50 3 27 . Classes Destroyed 29 | 2 4 2 . . . 4 6 . . . . 1 . 2 . . . . . 8 . . . Worker 14 | . . . . . . 4 . . . . . . 4 . . 4 1 . . . . 1 . Builder 15 | . . . . . . . 5 . . 2 3 . . . . 3 1 1 . . . . . Tunneler 5 | 4 . . . . . 1 . . . . . . . . . . . . . . . . . Hauler 2 | . 1 . . . . . . . . . . . . . . 1 . . . . . . . Recycler 10 | 1 . . . . . 1 2 . . . . . 4 . . 2 . . . . . . . Mechanic 7 | . . . . . . . 2 . . . . . . . . . . . . 4 . 1 . Operator 18 | . 2 . . . . 1 . . 9 . . . 2 1 . . . 1 . . 1 1 . Drone 10 | . . . . . . . . . . . . . . 1 . . . . . 9 . . . Watcher 11 | . . . . . . 1 2 1 . . 1 . 2 4 . . . . . . . . . Swarmer 48 | . 9 . . . . . 4 . . . 10 . 7 4 . 3 . . . 7 4 . . Saboteur 6 | . . . . . . . . . . . . . . . . . . . . 3 . 3 . Grunt 144 | . 8 3 . . . 2 11 . . 4 22 . 3 3 . 10 . . 4 39 . 35 . Brawler 10 | . . . . . . . 2 . . . 1 . . . . . . . . 4 . 3 . Duelist 13 | . . . . . . . 2 . . . 3 . . . . . . . . 3 . 5 . Protector 11 | . . . . . . . 1 . . . . . . . . . . . . 7 . 3 . Researcher 2 | . . . . . . . . . . . . . . . . . . . . 2 . . . Sentry 32 | . . . . . . . 1 . 3 1 1 . 6 6 . . . 1 . 12 . 1 . Specialist 8 | . . . . . . . . . . . . . . 1 . . . . . 3 . 4 . Hunter 37 | . . . . . . 1 . . . 2 4 . 4 4 . 1 . . . 13 2 6 . Programmer 36 | . . . . . . 1 . . . . 4 . 3 6 . . . . . 14 1 7 . Compactor 1 | . . . . . . . . . . . . 1 . . . . . . . . . . . Cetus Guard 2 | . . . . . . . . 2 . . . . . . . . . . . . . . . M Guard 2 | . . . . . . . . . . . . . . . . . . . . . . 2 . Enhanced Grunt 26 | . . . . . . . . . . . . . . . . . . . . . . . 26 Enhanced Sentry 2 | . . . . . . . . . . . . . . . . . . . . . . . 2 Enhanced Hunter 8 | . . . . . . . . . . . . . . . . . . . . . . . 8 Hotshot 2 | . . . . . . . . . . . . . . . . . . . . 2 . . . Decapitator 5 | . . . . . . . . . . . . . . . . . . . . 5 . . . Immortal 1 | . . . . . . . . . . . . . . . . . . . . 1 . . . Combat Programmer 2 | . . . . . . . . . . . . . . . . . . . . . . 2 . Investigator 1 | . . . . . . . . . . . . . . . . . . . . . . 1 . Striker 16 | . . . . . . . . . . . . . . . . . . . . 14 . 2 . Executioner 23 | . . . . . . . . . . . . . . . . . . . . 21 . 2 . Alpha 7 2 | . . . . . . . . . . . . . . . . . . . . 2 . . . Cobbler 1 | . . 1 . . . . . . . . . . . . . . . . . . . . . Subdweller 6 | . . 6 . . . . . . . . . . . . . . . . . . . . . Scrapper 1 | . . . . . . . . . . . . . . . . . . . . 1 . . . Scrapoid 3 | . . . . . . . . . . . . . . . . . . . . 3 . . . Best Kill Streak 39 | 5 5 2 . . . 2 11 2 4 4 7 1 8 5 . 5 2 1 4 19 3 39 11 Combat Bots Only 37 | . 5 2 . . . 2 9 2 1 2 7 1 6 5 . 4 . 1 4 18 3 37 11 Max Kills in Single Turn 6 | 1 1 1 . . . 2 5 1 1 2 5 1 5 2 . 4 1 1 1 6 3 3 3 Gunslinging . | . . . . . . . . . . . . . . . . . . . . . . . . Exploded 6 | . . . . . . 1 5 . . 1 5 . 4 2 . 3 . . 1 6 3 3 . Melee 1 | . . . . . . 1 1 . . . . . . . . . . . . 1 . . . Uniques/NPCs Destroyed 9 | . . . . . . . . . . . . . . . . . . . . . . 2 7 MAIN.C Shell (-1/Command) MAIN.C (-1/Command) A8 (-1/Access_0) A6 (-1/Access_0) A5 (-1/Access_0) A4 (-1/Access_0) A2 (-1/Access_0) Architect (-1/Access_0) A3 (-1/Access_0) Combat | -11 -10 -10 -7 -5 -5 -5 -5 -5 -5 -5 -4 -4 -4 -4 -4 -3 -3 -2 -2 -2 -1 -1 -1 -------- Run | Yrd Mat Sub Scr Fac Was Fac Ext Cet Arc Hub Fac Was Fac Arm Lab Res Qua Res Tes Frg Acc Com Ac0 Hostile Shots Fired 2006 | . 60 55 . . . 43 74 4 17 71 465 . 64 54 . 76 12 28 50 183 75 89 586 Missed 834 | . 12 24 . . . 23 29 1 5 21 148 . 24 11 . 37 7 7 26 68 33 55 303 Hits 1172 | . 48 31 . . . 20 45 3 12 50 317 . 40 43 . 39 5 21 24 115 42 34 283 Melee 11 | . . . . . . . . . . . 8 . . . . . . . . 1 . . 2 Projectile 1161 | . 48 31 . . . 20 45 3 12 50 309 . 40 43 . 39 5 21 24 114 42 34 281 AOE 7 | . . . . . . . 1 . . . . . . . . . . . . 4 . 2 . Critical Strikes 77 | . 1 . . . . 2 5 2 . 3 21 . 2 5 . 1 1 . . 6 1 3 24 Actively Blocked 20 | . . . . . . . . . . . 2 . 2 4 . . 1 . . 4 1 3 3 Part Disruptions 9 | . . . . . . . 1 . . . 1 . . . . . . . . . . 3 4 Actively Blocked 1 | . . . . . . . . . . . . . . . . . . . . . . . 1 Damage Taken 24035 | . 448 610 . 7 . 515 1173 206 311 1049 5197 . 768 882 . 649 96 581 628 3675 337 1227 5676 Core 2779 | . 72 117 . 7 . 55 163 . . 44 465 . 108 98 . 82 . 77 34 395 20 238 804 Absorbed by Shields 4388 | . . . . . . . 151 . . . 1241 . . 14 . . . . . 333 . 35 2614 Reduced by Siege Mode 13 | . . . . . . . . . 13 . . . . . . . . . . . . . . Redirected to Shielding 220 | . . . . . . . . . . . . . . . . . . . . . . . 220 Ignored by Resistances 772 | . . . . . . . . . . . . . . . . . . . . 278 78 125 291 Regen/Repaired (Parts) 6462 | . . . 219 . . . . . . 12 873 3 379 302 . 156 44 82 296 1458 140 257 2241 Core Remaining (%) 59 | 100 . . 24 . . . . . . 73 . . . . 41 . 93 . . 83 . . 3 Volleys Fired 1928 | 14 71 48 1 . 6 10 59 8 37 26 175 18 122 105 6 65 22 46 37 436 46 407 163 Largest 2 | 2 2 2 1 . 1 1 1 1 2 2 2 1 2 1 1 2 1 2 1 2 1 2 1 Hottest 250 | 70 50 90 . . 90 90 90 47 81 92 240 105 193 120 120 160 40 160 50 190 140 250 140 Shots Fired 2201 | 28 72 91 1 . 6 12 56 9 71 39 230 16 124 105 7 66 22 48 37 532 46 420 163 Gun 730 | 28 1 77 . . . . . . 70 23 189 . . . . 4 . 14 . 88 . 233 3 Cannon 908 | . 71 14 . . 6 8 39 3 . . 22 16 66 35 7 35 21 23 23 258 43 58 160 Launcher 542 | . . . . . . 2 17 6 1 16 19 . 58 70 . 25 . 10 6 180 3 129 . Special 21 | . . . 1 . . 2 . . . . . . . . . 2 1 1 8 6 . . . Kinetic 851 | 14 72 53 . . . . 4 3 70 16 72 . . . . . . . . 219 12 247 69 Thermal 678 | 13 . 23 . . 6 8 35 . . 7 117 16 60 35 7 35 21 23 23 103 31 32 83 Explosive 108 | . . . . . . 2 11 . . . 8 . . 11 . 3 . . . 70 3 . . Electromagnetic 524 | 1 . 15 . . . . 6 6 1 16 33 . 64 59 . 26 . 24 6 127 . 132 8 Entropic 19 | . . . . . . . . . . . . . . . . . . . . 7 . 9 3 Robot Hit Streak 44 | 4 11 11 3 . 3 5 2 3 12 5 44 8 26 6 . 7 . 6 . 25 7 43 28 Robot Miss Streak 14 | 10 3 4 . . 1 1 2 2 4 3 3 1 2 2 . 4 . 1 . 14 5 4 3 Penetration Max 3 | . . . . . . . . . 1 . 1 . . . . . . 1 . 3 . 1 3 Secondary Targets 1 | . . . . . . . . . . . 1 . . . . . . . . . . . . Max Gunslinging Chain 1 | . . . . . . . . . . . 1 . . . . . . . . . . . . Capacitor 61 | . . . . . . . . . . . . . . . . . . . . . . . 61 Shots Hit Robots 1135 | 11 55 65 13 1 4 21 33 4 42 15 174 14 35 16 . 14 2 12 . 197 11 256 140 Core Hits 1452 | 6 20 21 6 . . 14 64 4 23 14 118 2 62 51 . 43 . 14 10 518 17 305 140 Critical Kills 146 | . . . . . . . . . 8 1 2 1 1 1 . . . . . 81 4 11 36 Critical Parts Destroyed 157 | . . . . . . . . . 5 1 . . . . . . . . . 104 6 13 28 Critical Strikes 333 | . 3 . 1 . . . 4 . 14 2 7 1 1 1 . . . . . 189 10 27 73 Burn 4 | . . . . . . . . . . . 4 . . . . . . . . . . . . Meltdown 16 | . . . . . . . . . . . . 1 1 1 . . . . . 4 . 5 4 Destroy 300 | . . . . . . . . . 14 2 2 . . . . . . . . 185 10 21 66 Blast 7 | . 3 . . . . . . . . . . . . . . . . . . . . 1 3 Corrupt 1 | . . . . . . . . . . . 1 . . . . . . . . . . . . Sever 5 | . . . 1 . . . 4 . . . . . . . . . . . . . . . . Melee Attacks 135 | . . . 12 3 . 51 49 . . . 2 . . . . . 10 4 . 4 . . . Impact . | . . . . . . . . . . . . . . . . . . . . . . . . Slashing 132 | . . . 12 2 . 51 49 . . . . . . . . . 10 4 . 4 . . . Piercing . | . . . . . . . . . . . . . . . . . . . . . . . . Sneak Attacks 27 | . . . . 1 . 8 11 . . . 2 . . . . . 2 . . 3 . . . Combat Hostiles 2 | . . . . . . . 2 . . . . . . . . . . . . . . . . Follow-up Attacks . | . . . . . . . . . . . . . . . . . . . . . . . . Damage Inflicted 82181 | 137 1021 1052 774 . 158 1190 5052 322 1357 1311 6835 537 3862 4201 . 2363 213 442 406 21111 409 20571 8857 Guns 13413 | 137 11 839 . . . . . . 1331 264 2928 . . . . 10 . 26 . 1647 . 6083 137 Cannons 18566 | . 1010 166 . . 158 . 134 38 . . 787 537 1315 633 . 462 . 144 . 1875 80 2507 8720 Explosions 46312 | . . 47 . . . 226 3367 284 26 1038 3113 . 2513 3568 . 1891 . 272 406 17251 329 11981 . Melee 3840 | . . . 774 . . 964 1551 . . . . . . . . . 213 . . 338 . . . Ramming 50 | . . . . . . . . . . 9 7 . 34 . . . . . . . . . . Kinetic 17448 | 48 1021 652 . . . . 32 38 1331 264 977 . . . . . . . . 2930 80 7494 2581 Thermal 18630 | 74 . 258 . . 158 . 518 . . 60 2597 537 1524 998 . 711 . 172 . 631 . 4490 5902 Explosive 20645 | . . . . . . 226 2493 . . . 1831 . . 1307 . 566 . . . 13893 329 . . Electromagnetic 21022 | 15 . 142 . . . . 458 284 26 978 1423 . 2304 1896 . 1086 . 270 406 3223 . 8274 237 Impact . | . . . . . . . . . . . . . . . . . . . . . . . . Slashing 3840 | . . . 774 . . 964 1551 . . . . . . . . . 213 . . 338 . . . Piercing . | . . . . . . . . . . . . . . . . . . . . . . . . Entropic 546 | . . . . . . . . . . . . . . . . . . . . 96 . 313 137 Highest Corruption 38 | . . . . . 8 9 30 38 38 15 12 12 12 4 4 . . . . 19 . 9 3 Average Corruption 10 | . . . . . 8 7 16 36 23 5 9 12 11 3 4 . . . . 10 . 3 2 Corruption Purged 82 | . . . . . . 3 . . 33 . . . 12 . . . . . . 19 . 15 . Corruption Blocked . | . . . . . . . . . . . . . . . . . . . . . . . . Effects 409 | . . . . . 3 32 39 25 42 11 25 7 56 7 4 . . . . 123 . 17 18 Message Errors 97 | . . . . . . 9 8 10 6 3 2 . 17 1 1 . . . . 29 . 5 6 Matter Fused 103 | . . . . . 1 9 14 5 13 3 10 . 9 4 1 . . . . 28 . 3 3 Heat Flow Errors 43 | . . . . . 1 5 3 2 5 1 1 2 5 2 . . . . . 13 . 1 2 Energy Discharges 45 | . . . . . . 1 3 2 2 1 5 1 6 . . . . . . 19 . 3 2 Parts Rejected 5 | . . . . . . . 1 . . 1 1 . 1 . . . . . . 1 . . . Parts Fused 6 | . . . . . 1 . . . 1 . . . 1 . . . . . . 3 . . . Data Loss (minor) 36 | . . . . . . 2 5 2 4 1 3 . 5 . 1 . . . . 6 . 2 5 Data Loss (major) 18 | . . . . . . 3 2 . . 1 1 . 1 . . . . . . 9 . 1 . Misfires 10 | . . . . . . 2 . 1 2 . 2 . 1 . 1 . . . . . . 1 . Alerts 11 | . . . . . . 1 . . 2 . . . 3 . . . . . . 4 . 1 . Misdirections 16 | . . . . . . . . 3 2 . . 2 5 . . . . . . 4 . . . Weapon Failures 19 | . . . . . . . 3 . 5 . . 2 2 . . . . . . 7 . . . Overload Shots 6 | . . . . . . . . . . . 3 . . . . . . 3 . . . . . Effects 1 | . . . . . . . . . . . . . . . . . . 1 . . . . . Heat Surge 1 | . . . . . . . . . . . . . . . . . . 1 . . . . . Overflow Damage 2138 | . 4 . 163 . . 181 231 . . 19 136 . 196 220 . 45 133 20 . 282 8 203 297 Projectiles 605 | . 4 . . . . . . . . . . . 131 86 . 17 . 20 . . . 50 297 Explosions 825 | . . . . . . . 120 . . 19 136 . 65 134 . 28 . . . 162 8 153 . Melee 708 | . . . 163 . . 181 111 . . . . . . . . . 133 . . 120 . . . Knockbacks 58 | . 17 . . . . . . . . . . . . . . . . . . 10 3 6 22 Impact . | . . . . . . . . . . . . . . . . . . . . . . . . Kinetic 54 | . 13 . . . . . . . . . . . . . . . . . . 10 3 6 22 Secondary 4 | . 4 . . . . . . . . . . . . . . . . . . . . . . Self-Inflicted Damage 701 | . . 29 . . . . 31 49 . 111 69 . 83 . . . . 11 . 209 17 92 . Shots 28 | . . 1 . . . . 1 2 . 4 4 . 3 . . . . 1 . 8 1 3 . Rammed 1 | . . . . . . . . . . . . . 1 . . . . . . . . . . Targets Rammed 5 | . . . . . . . . . . 3 1 . 1 . . . . . . . . . . Kicked 4 | . . . . . . . . . . 3 1 . . . . . . . . . . . . Crushed . | . . . . . . . . . . . . . . . . . . . . . . . . Highest Temperature 446 | 108 2 . . . 194 237 341 239 291 255 389 135 335 405 188 409 . 154 . 350 446 345 354 Average Temperature 104 | 51 1 . . . 44 72 113 48 93 89 119 60 107 96 75 134 . 70 . 71 127 139 124 Received Heat Transfer 2320 | . 150 60 . . . 66 107 21 27 297 979 . 54 33 . 168 9 9 27 75 . 28 210 Effects 32 | . . . . . . . 1 . . 4 6 . 9 3 . 7 . . . . . 2 . Shutdowns 5 | . . . . . . . . . . . . . 1 . . 4 . . . . . . . Energy Bleed 10 | . . . . . . . 1 . . . 3 . 2 . . 2 . . . . . 2 . Interference 17 | . . . . . . . . . . 4 3 . 6 3 . 1 . . . . . . . Siege Activations 4 | . . . . . . . . . 3 1 . . . . . . . . . . . . . Total Turns 101 | . . . . . . . . . 92 9 . . . . . . . . . . . . . Longest Duration 55 | . . . . . . . . . 55 9 . . . . . . . . . . . . . Martial Activations . | . . . . . . . . . . . . . . . . . . . . . . . . Shielding Activations . | . . . . . . . . . . . . . . . . . . . . . . . . Robots Disrupted 6 | . . . . . . . . . . . . . . . . . . 3 . 3 . . . Combat Hostiles 6 | . . . . . . . . . . . . . . . . . . 3 . 3 . . . Robots Corrupted 103 | . . . . . . . . 2 . 4 8 . 9 8 . 5 . 2 3 22 . 38 2 Combat Hostiles 98 | . . . . . . . . 2 . 4 8 . 8 7 . 5 . 1 3 21 . 37 2 Parts Fried 196 | . . . . . . . 1 2 . 11 11 . 13 18 . 12 . 4 3 36 . 75 10 Impact Corruptions 1 | . 1 . . . . . . . . . . . . . . . . . . . . . . Robots Melted 17 | . . . . . . . . . . . 1 1 1 1 . . . . . 4 . 5 4 Combat Hostiles 16 | . . . . . . . . . . . 1 1 1 1 . . . . . 4 . 4 4 Parts Melted 39 | . . . . . . 3 . 1 . . 8 . 7 3 . . . . . 11 . 4 2 Heat Transferred 13621 | 222 . 629 . . 250 . 624 . . 50 3706 555 1398 831 . 607 . 150 . 557 . 2492 1550 Parts Sabotaged . | . . . . . . . . . . . . . . . . . . . . . . . . Parts Stolen . | . . . . . . . . . . . . . . . . . . . . . . . . Parts Stripped . | . . . . . . . . . . . . . . . . . . . . . . . . Power Chain Reactions 51 | . . 1 . . . . 3 . . 1 1 . 7 9 . 2 . 1 . 4 . 22 . Alert | -11 -10 -10 -7 -5 -5 -5 -5 -5 -5 -5 -4 -4 -4 -4 -4 -3 -3 -2 -2 -2 -1 -1 -1 ------- Run | Yrd Mat Sub Scr Fac Was Fac Ext Cet Arc Hub Fac Was Fac Arm Lab Res Qua Res Tes Frg Acc Com Ac0 Maximum Alert Level 5 | . 1 . . . . 3 3 2 1 2 4 1 3 2 . 2 2 . 1 5 5 5 . Low Security (%) 21 | 100 57 . . 100 100 8 31 . 62 83 3 . . 10 . 50 40 100 96 5 . . . Level 1 14 | . 42 . . . . . 32 . 37 6 1 100 32 43 . 7 22 . 3 12 . . . Level 2 26 | . . . . . . 78 17 100 . 10 48 . 63 45 . 41 36 . . 19 . . . Level 3 9 | . . . . . . 12 18 . . . 35 . 3 . . . . . . 24 . . . Level 4 4 | . . . . . . . . . . . 11 . . . . . . . . 17 . . . Level 5 21 | . . . . . . . . . . . . . . . . . . . . 20 76 88 . High Security 2 | . . . . . . . . . . . . . . . . . . . . . 23 11 . Max Security . | . . . . . . . . . . . . . . . . . . . . . . . . Peak Influence 4922 | 10 305 . . 2 5 758 767 510 248 432 1129 381 708 623 . 682 480 113 230 4863 3320 4922 . Initial 2916 | . . . . . . 3 296 428 179 . 191 381 233 312 . . 364 38 13 31 2916 2124 . Average 716 | 1 152 . . . . 586 404 458 140 74 707 360 472 377 . 275 281 41 55 1242 3078 3573 . Influence Increases 20584 | 25 507 70 30 4 15 1351 1283 229 221 508 1706 2 1111 1375 . 979 353 272 422 5625 724 3340 432 Destroy 0b10 Robot/C 8840 | . 340 60 . . . 400 640 160 80 140 900 . 500 580 . 280 . 40 80 2920 140 1580 . Destroy 0b10 Robot/NC 620 | 25 15 . 30 . . 50 65 10 45 10 20 . 80 30 . 50 10 15 . 110 5 50 . Destroy Leader 1386 | . 62 10 . . . 66 84 . . 30 142 . 136 158 . 32 . 12 10 414 30 200 . Allied During Kill 540 | . . . . . . 155 124 16 2 . . . 7 138 . . . 3 . 57 . 38 . Successful Hack 1021 | . . . . . . 62 66 7 . . 22 . 28 33 . 52 237 109 111 168 78 48 . Select Force Hacks 110 | . 30 . . . . 30 . . . . . . . . . . . . 50 . . . . Disable Machine 1710 | . . . . . . 195 15 . 60 90 165 . 45 165 . 30 30 . 75 615 45 60 120 Destroy Structure 3547 | . . . . 4 . 168 184 36 34 238 292 2 120 256 . 130 46 93 51 1086 196 329 282 Partial Spotted 270 | . . . . . 15 60 30 . . . . . 45 . . 15 30 . 15 15 . 15 30 Lose Combat Pursuer 2040 | . 60 . . . . 165 75 . . . 165 . 150 15 . 390 . . 30 240 30 720 . Active Sensor Use 500 | . . . . . . . . . . . . . . . . . . . . . 200 300 . Influence Decreases 20212 | 25 319 258 10 22 12 751 1121 547 670 116 1007 760 806 1390 623 331 932 316 390 821 2265 1836 4884 Entered New Map 11311 | . . 91 . 20 2 2 309 339 270 . 201 710 100 326 623 . 284 31 12 26 1945 1196 4824 Time Decay 5628 | 25 319 147 10 2 10 449 392 198 370 96 586 50 506 464 . 306 398 157 208 725 160 50 . Search Patrol Dispatched 100 | . . . . . . . . . . . . . . . . . 100 . . . . . . Lost Part 640 | . . 20 . . . 50 90 10 10 20 220 . 20 10 . 20 . . 10 40 10 50 60 Lost Ally 1055 | . . . . . . 100 180 . 20 . . . 30 140 . 5 . . 10 30 . 540 . Purge Threat 1478 | . . . . . . 150 150 . . . . . 150 450 . . 150 128 150 . 150 . . Squads Dispatched 123 | . 5 . . 1 . 18 5 . . 3 12 . 14 8 . 10 1 4 8 11 6 17 . Investigation 52 | . 2 . . 1 . 12 2 . . . 3 . 9 4 . 4 . 2 1 7 2 3 . Extermination 19 | . . . . . . 3 . . . 1 3 . 3 3 . . 1 1 2 1 1 . . Reinforcement 26 | . 3 . . . . 2 . . . 2 3 . 1 1 . 6 . 1 4 3 . . . Assault 26 | . . . . . . 1 3 . . . 3 . 1 . . . . . 1 . 3 14 . Garrison . | . . . . . . . . . . . . . . . . . . . . . . . . Intercept . | . . . . . . . . . . . . . . . . . . . . . . . . Searches Triggered 1 | . . . . . . . . . . . . . . . . . 1 . . . . . . Unchained Authorized 5 | . . . . . . . . . . . . . 1 1 . . 1 1 1 . . . . Construction Impeded 6 | . . . . . . . . . . 1 1 . 1 . . 2 . 1 . . . . . Haulers Reinforced . | . . . . . . . . . . . . . . . . . . . . . . . . Active Scanning Responses 5 | . . . . . . . . . . . . . . . . . . . . . 2 3 . Cargo Convoy Interrupts . | . . . . . . . . . . . . . . . . . . . . . . . . Stealth | -11 -10 -10 -7 -5 -5 -5 -5 -5 -5 -5 -4 -4 -4 -4 -4 -3 -3 -2 -2 -2 -1 -1 -1 --------- Run | Yrd Mat Sub Scr Fac Was Fac Ext Cet Arc Hub Fac Was Fac Arm Lab Res Qua Res Tes Frg Acc Com Ac0 Distress Signals 54 | . 4 . . . . 2 1 1 . . 1 . 1 1 . 8 1 . 2 7 . 25 . Communications Jammed 74 | . . . . . . . 7 . . . . . 29 23 . . 14 . . . . 1 . Distress Signals 74 | . . . . . . . 7 . . . . . 29 23 . . 14 . . . . 1 . Times Spotted 658 | . 27 10 . 1 4 32 43 8 18 19 80 6 44 27 . 35 5 8 12 149 9 50 71 Peak Tracking Total 42 | . 6 2 . 1 4 12 10 4 1 9 7 6 7 6 . 12 2 3 6 13 5 42 11 Tactical Retreats 71 | . 4 . . . . 7 4 . . . 6 1 7 1 . 9 1 . 2 11 2 9 7 ECM-based Alert Blocks 1 | . . . . . . . . . . . . . . . . . 1 . . . . . . Traps | -11 -10 -10 -7 -5 -5 -5 -5 -5 -5 -5 -4 -4 -4 -4 -4 -3 -3 -2 -2 -2 -1 -1 -1 ------- Run | Yrd Mat Sub Scr Fac Was Fac Ext Cet Arc Hub Fac Was Fac Arm Lab Res Qua Res Tes Frg Acc Com Ac0 Traps Triggered 37 | . 1 . . 1 . 2 3 . . 1 1 . 3 4 . . 1 . . 19 . 1 . Indirectly 12 | . . . . . . . . . . . . . 1 3 . . . . . 8 . . . Trap Hack Attempts . | . . . . . . . . . . . . . . . . . . . . . . . . Triggered . | . . . . . . . . . . . . . . . . . . . . . . . . Disarmed 1 | . . . . . . . . . . . . . . . . . . 1 . . . . . Reprogrammed . | . . . . . . . . . . . . . . . . . . . . . . . . Reused . | . . . . . . . . . . . . . . . . . . . . . . . . Traps Extracted . | . . . . . . . . . . . . . . . . . . . . . . . . Installed . | . . . . . . . . . . . . . . . . . . . . . . . . Triggered . | . . . . . . . . . . . . . . . . . . . . . . . . Machines | -11 -10 -10 -7 -5 -5 -5 -5 -5 -5 -5 -4 -4 -4 -4 -4 -3 -3 -2 -2 -2 -1 -1 -1 ---------- Run | Yrd Mat Sub Scr Fac Was Fac Ext Cet Arc Hub Fac Was Fac Arm Lab Res Qua Res Tes Frg Acc Com Ac0 Machines Disabled 138 | . . . . . . 13 3 1 4 6 11 . 5 11 1 2 2 . 7 54 3 4 11 Max in Single Turn 5 | . . . . . . 1 2 1 2 5 5 . 1 2 1 1 1 . 1 5 1 1 2 Garrison Access 9 | . . . . 1 . 2 . . . 1 1 . 1 . . . 1 . 1 1 . . . Network Hub 1 | . . . . . . . . . . 1 . . . . . . . . . . . . . Machines Repaired . | . . . . . . . . . . . . . . . . . . . . . . . . Machines Dismantled . | . . . . . . . . . . . . . . . . . . . . . . . . Machines Sabotaged . | . . . . . . . . . . . . . . . . . . . . . . . . Overloaded Fab Kills . | . . . . . . . . . . . . . . . . . . . . . . . . Hacking | -11 -10 -10 -7 -5 -5 -5 -5 -5 -5 -5 -4 -4 -4 -4 -4 -3 -3 -2 -2 -2 -1 -1 -1 --------- Run | Yrd Mat Sub Scr Fac Was Fac Ext Cet Arc Hub Fac Was Fac Arm Lab Res Qua Res Tes Frg Acc Com Ac0 Machines Accessed 148 | . 3 . 2 3 . 23 12 1 . 2 6 . 16 10 . 7 12 8 13 20 6 3 1 Terminals 74 | . 2 . . . . 10 11 1 . 1 . . 4 5 . 1 8 5 6 11 6 3 . Fabricators 19 | . . . . . . 2 . . . . 1 . 3 4 . 2 . 2 1 4 . . . Repair Stations 7 | . . . . . . . . . . . 3 . 1 . . . 1 . 2 . . . . Recycling Units 22 | . 1 . . 1 . 7 1 . . . . . 6 1 . 1 . 1 . 3 . . . Scanalyzers 14 | . . . . 1 . 2 . . . . 1 . 1 . . 3 2 . 3 1 . . . Garrison Access 9 | . . . . 1 . 2 . . . 1 1 . 1 . . . 1 . 1 1 . . . Total Hacks 728 | . 10 . 7 6 . 103 52 5 . 4 28 . 63 57 . 63 85 84 69 52 18 5 17 Successful 465 | . 6 . 7 4 . 69 35 1 . 2 24 . 40 48 . 42 43 40 48 28 8 3 17 Failed 259 | . 4 . . 2 . 33 16 4 . 2 4 . 22 8 . 21 42 44 21 24 10 2 . Catastrophic 31 | . 1 . . . . 1 2 . . 1 . . 6 1 . . 1 7 . 7 2 2 . Database Lockouts 4 | . . . . . . 1 1 . . . . . 1 1 . . . . . . . . . Manual 349 | . 10 . . 1 . 68 39 . . 3 3 . 31 22 . 14 28 46 31 37 15 1 . Terminals 388 | . 9 . . . . 58 51 5 . 3 . . 15 22 . 9 53 68 41 31 18 5 . Fabricators 116 | . . . . . . 9 . . . . 4 . 18 34 . 13 . 15 8 15 . . . Repair Stations 33 | . . . . . . . . . . . 11 . 7 . . . 8 . 7 . . . . Recycling Units 63 | . 1 . . 2 . 25 1 . . . . . 14 1 . 14 . 1 . 4 . . . Scanalyzers 90 | . . . . 2 . 7 . . . . 12 . 7 . . 27 23 . 11 1 . . . Garrison Access 14 | . . . . 2 . 4 . . . 1 1 . 2 . . . 1 . 2 1 . . . Terminal Hacks 147 | . 1 . 7 . . 23 17 1 . . . . 4 11 . 3 11 19 18 9 4 2 17 Record 25 | . . . 7 . . . . . . . . . . . . . . . . 1 . . 17 Part Schematic 21 | . . . . . . 6 7 . . . . . . 2 . . 2 2 2 . . . . Robot Analysis 4 | . 1 . . . . . 1 . . . . . . . . . 1 . . 1 . . . Prototype ID Bank 12 | . . . . . . 2 1 . . . . . 1 . . . 1 1 3 . 2 1 . Open Door 5 | . . . . . . . 3 1 . . . . . . . . . . . . . 1 . Level Access Points 1 | . . . . . . . . . . . . . . . . . . . . 1 . . . Branch Access Points 2 | . . . . . . 1 . . . . . . . . . . . 1 . . . . . Emergency Access Points 2 | . . . . . . 1 . . . . . . . . . 1 . . . . . . . Machine Index 2 | . . . . . . . . . . . . . . . . . . 1 1 . . . . Terminal Index 5 | . . . . . . 1 . . . . . . . . . . 2 1 . 1 . . . Fabricator Index 2 | . . . . . . 1 . . . . . . . . . . . 1 . . . . . Recycling Unit Index 1 | . . . . . . . . . . . . . . . . . . . . 1 . . . Garrison Index 2 | . . . . . . . . . . . . . . . . . . 1 1 . . . . Alert Level 6 | . . . . . . 1 1 . . . . . . 1 . . . 1 1 . 1 . . Unreport Threat 10 | . . . . . . 1 1 . . . . . 1 3 . . 1 1 1 . 1 . . Locate Traps 9 | . . . . . . 1 1 . . . . . . . . . 2 2 1 2 . . . Disarm Traps 1 | . . . . . . . . . . . . . . . . . . 1 . . . . . Dispatch Records 1 | . . . . . . . . . . . . . . 1 . . . . . . . . . Maintenance Status 1 | . . . . . . . . . . . . . . . . . . 1 . . . . . Security Status 2 | . . . . . . 1 . . . . . . . . . . . . . 1 . . . Surveillance Status 2 | . . . . . . . . . . . . . . 1 . . 1 . . . . . . Patrol Status 2 | . . . . . . 1 . . . . . . . . . . . 1 . . . . . Transport Status 1 | . . . . . . . . . . . . . . . . . . 1 . . . . . Extermination Status 1 | . . . . . . . . . . . . . . . . . . . 1 . . . . Recall Investigation 7 | . . . . . . 3 1 . . . . . 1 1 . . . . 1 . . . . Recall Extermination 4 | . . . . . . 2 . . . . . . 1 . . . 1 . . . . . . Recall Reinforcements 1 | . . . . . . . . . . . . . . . . . . . 1 . . . . Hauler Manifests 2 | . . . . . . . . . . . . . . . . 1 . 1 . . . . . Registered Prototypes 1 | . . . . . . . . . . . . . . . . . . . 1 . . . . Zone Layout 9 | . . . . . . 1 1 . . . . . . 2 . 1 . 2 2 . . . . Proto ID Catalog 1 | . . . . . . . . . . . . . . . . . . . . 1 . . . Protovariant Controls 2 | . . . . . . . . . . . . . . . . . . . 2 . . . . Fabricator Hacks 51 | . . . . . . 4 . . . . 2 . 8 26 . 5 . 3 1 2 . . . Network Status 6 | . . . . . . . . . . . . . 2 1 . 1 . 1 1 . . . . Load Schematic 23 | . . . . . . 2 . . . . 1 . 3 13 . 2 . 1 . 1 . . . Build 22 | . . . . . . 2 . . . . 1 . 3 12 . 2 . 1 . 1 . . . Repair Station Hacks 22 | . . . . . . . . . . . 8 . 5 . . . 3 . 6 . . . . Scan Component 12 | . . . . . . . . . . . 5 . 2 . . . 2 . 3 . . . . Repair 9 | . . . . . . . . . . . 3 . 2 . . . 1 . 3 . . . . Refit 1 | . . . . . . . . . . . . . 1 . . . . . . . . . . Recycling Unit Hacks 13 | . . . . 1 . 3 . . . . . . 1 . . 8 . . . . . . . Process 6 | . . . . . . . . . . . . . . . . 6 . . . . . . . Retrieve Matter 2 | . . . . . . 1 . . . . . . . . . 1 . . . . . . . Retrieve Components 5 | . . . . 1 . 2 . . . . . . 1 . . 1 . . . . . . . Scanalyzer 59 | . . . . 1 . 3 . . . . 11 . 6 . . 16 16 . 6 . . . . Insert Component 24 | . . . . . . 1 . . . . 5 . . . . 6 9 . 3 . . . . Analyze 20 | . . . . . . 1 . . . . 5 . . . . 6 6 . 2 . . . . Retrieve Study 15 | . . . . 1 . 1 . . . . 1 . 6 . . 4 1 . 1 . . . . Garrison Access Hacks 9 | . . . . 1 . 2 . . . 1 1 . 1 . . . 1 . 1 1 . . . Seal Access 9 | . . . . 1 . 2 . . . 1 1 . 1 . . . 1 . 1 1 . . . Unauthorized Hacks 164 | . 5 . . 1 . 34 18 . . 1 2 . 15 11 . 10 12 18 16 16 4 1 . Terminals 91 | . 4 . . . . 12 17 . . 1 . . 3 6 . 1 11 12 8 11 4 1 . Track 10 | . . . . . . 1 3 . . . . . 1 1 . . 2 1 . 1 . . . Assimilate 4 | . . . . . . . . . . . . . 2 . . . . . 1 1 . . . Botnet 40 | . 2 . . . . 6 6 . . 1 . . . 4 . 1 3 4 3 5 4 1 . Disrupt 2 | . . . . . . . 1 . . . . . . . . . . 1 . . . . . Operators 4 | . . . . . . 1 1 . . . . . . . . . 1 1 . . . . . Skim 31 | . 2 . . . . 4 6 . . . . . . 1 . . 5 5 4 4 . . . Fabricators 29 | . . . . . . 3 . . . . 1 . 5 4 . 4 . 5 6 1 . . . Report 4 | . . . . . . . . . . . . . 1 . . 1 . 1 1 . . . . Prioritize 14 | . . . . . . 2 . . . . 1 . 3 4 . 2 . 1 1 . . . . Liberate 1 | . . . . . . . . . . . . . . . . . . . 1 . . . . Fabnet 4 | . . . . . . . . . . . . . . . . . . 2 1 1 . . . Haulers 5 | . . . . . . 1 . . . . . . 1 . . 1 . 1 1 . . . . Overload 1 | . . . . . . . . . . . . . . . . . . . 1 . . . . Repair Stations 1 | . . . . . . . . . . . 1 . . . . . . . . . . . . Mechanics 1 | . . . . . . . . . . . 1 . . . . . . . . . . . . Recycling Units 38 | . 1 . . 1 . 18 1 . . . . . 7 1 . 5 . 1 . 3 . . . Monitor 2 | . . . . . . 1 . . . . . . . . . 1 . . . . . . . Reject 5 | . . . . . . 4 . . . . . . . . . 1 . . . . . . . Recyclers 2 | . . . . . . 1 . . . . . . . . . 1 . . . . . . . Mask 7 | . . . . . . 5 . . . . . . 1 . . 1 . . . . . . . Tunnel 1 | . 1 . . . . . . . . . . . . . . . . . . . . . . Fedlink 17 | . . . . 1 . 6 . . . . . . 5 . . 1 . 1 . 3 . . . Scrapoids 1 | . . . . . . 1 . . . . . . . . . . . . . . . . . Scraphulk 3 | . . . . . . . 1 . . . . . 1 1 . . . . . . . . . Scanalyzers 5 | . . . . . . 1 . . . . . . . . . . 1 . 2 1 . . . Researchers 4 | . . . . . . . . . . . . . . . . . 1 . 2 1 . . . Extract 1 | . . . . . . 1 . . . . . . . . . . . . . . . . . Garrison Access . | . . . . . . . . . . . . . . . . . . . . . . . . Data Cores Recovered 2 | . . . . . . . . . . . . . . . . . . 1 . . 1 . . Used 1 | . . . . . . . . . . . . . . . . . . . . . 1 . . Hacking Detections 97 | . 2 . . 1 . 18 6 1 . 1 4 . 10 6 . 7 9 6 8 10 6 2 . Full Trace Events 20 | . 1 . . . . 2 1 . . . 3 . 3 3 . 2 . 1 . 4 . . . Feedback Events 1 | . . . . . . . . . . . . . . . . . . . . 1 . . . Corruption 1 | . . . . . . . . . . . . . . . . . . . . 1 . . . Feedback Blocked . | . . . . . . . . . . . . . . . . . . . . . . . . Robot Schematics Acquired 1 | . . . . . . . . . . . . . . . . . . . . 1 . . . Robots Built 1 | . . . . . . . . . . . . . . . . 1 . . . . . . . Authchips . | . . . . . . . . . . . . . . . . . . . . . . . . Time 51 | . . . . . . . . . . . . . . . . 51 . . . . . . . Total Robot Build Rating 8 | . . . . . . . . . . . . . . . . 8 . . . . . . . Part Schematics Acquired 55 | . . . . . . 19 7 . . . 5 . . 2 . 5 7 2 3 5 . . . Parts Built 30 | . . . . . . 2 . . . . 1 . 5 16 . 2 . 2 . 2 . . . Authchips 10 | . . . . . . . . . . . . . . 10 . . . . . . . . . Time 930 | . . . . . . 52 . . . . 38 . 164 601 . 17 . 23 . 35 . . . Total Part Build Rating 183 | . . . . . . 12 . . . . 5 . 32 92 . 12 . 18 . 12 . . . Part Studies Acquired 14 | . . . . 1 . 1 . . . . . . 6 . . 4 1 . 1 . . . . Parts Repaired 9 | . . . . . . . . . . . 3 . 2 . . . 1 . 3 . . . . Time 549 | . . . . . . . . . . . 212 . 183 . . . 33 . 121 . . . . Parts Recycled . | . . . . . . . . . . . . . . . . . . . . . . . . Recycled Matter . | . . . . . . . . . . . . . . . . . . . . . . . . Retrieved Matter . | . . . . . . . . . . . . . . . . . . . . . . . . Retrieved Components 27 | . . . . 2 . 9 . . . . . . 10 . . 6 . . . . . . . Parts Scanalyzed 18 | . . . . . . 1 . . . . 5 . . . . 5 5 . 2 . . . . Part Schematics Acquired 17 | . . . . . . 1 . . . . 5 . . . . 5 5 . 1 . . . . Parts Damaged 3 | . . . . . . . . . . . 2 . . . . . 1 . . . . . . Bothacking | -11 -10 -10 -7 -5 -5 -5 -5 -5 -5 -5 -4 -4 -4 -4 -4 -3 -3 -2 -2 -2 -1 -1 -1 ------------ Run | Yrd Mat Sub Scr Fac Was Fac Ext Cet Arc Hub Fac Was Fac Arm Lab Res Qua Res Tes Frg Acc Com Ac0 Used RIF Installer . | . . . . . . . . . . . . . . . . . . . . . . . . Robots Hacked 49 | . . . . 1 . . . . . . 2 . . . . 2 1 1 5 5 2 30 . Non-combat 5 | . . . . 1 . . . . . . 2 . . . . . . . 2 . . . . Combat 32 | . . . . . . . . . . . . . . . . . . . . . 2 30 . Robot Hacks Applied 5 | . . . . 1 . . . . . . 2 . . . . . . . 2 . . . . parse_system 2 | . . . . . . . . . . . 1 . . . . . . . 1 . . . . find_chute 2 | . . . . 1 . . . . . . 1 . . . . . . . . . . . . check_alert 1 | . . . . . . . . . . . . . . . . . . . 1 . . . . Manual 12 | . . . . . . . . . . . . . . . . 2 1 1 3 5 . . . Relay Couplers Released 2 | . . . . . . 2 . . . . . . . . . . . . . . . . . Machine Destruction 2 | . . . . . . 2 . . . . . . . . . . . . . . . . . Fabnet Peak Effective % 9 | . . . . . . . . . . . . . . . . . . . . . 9 9 9 Autooverrided 32 | . . . . . . . . . . . . . . . . . . . . . 2 30 . Robots Rewired 18 | . . . . . . . 7 . . . . . . 9 . . . 1 . 1 . . . Allies Hacked 5 | . . . . . . . 2 . . . . . . 3 . . . . . . . . . Hacks Repelled 1 | . . . . . . . 1 . . . . . . . . . . . . . . . . Allies | -11 -10 -10 -7 -5 -5 -5 -5 -5 -5 -5 -4 -4 -4 -4 -4 -3 -3 -2 -2 -2 -1 -1 -1 -------- Run | Yrd Mat Sub Scr Fac Was Fac Ext Cet Arc Hub Fac Was Fac Arm Lab Res Qua Res Tes Frg Acc Com Ac0 Total Allies 68 | . . . 1 . 1 5 11 . . . . . 3 10 . 1 . 1 1 2 2 30 . Largest Group 14 | . . . 1 1 2 5 6 1 1 . . . 2 4 . 1 . 1 1 1 2 14 . Highest-Rated Group 829 | . . . 54 54 85 235 305 123 123 . . . 123 188 . 49 . 69 45 107 367 829 . Highest-Rated Ally 200 | . . . 54 54 54 47 159 123 123 . . . 123 123 . 49 . 69 45 107 200 89 . Total Orders 27 | . . . . . . . 8 7 1 . . . 3 8 . . . . . . . . . STAY 18 | . . . . . . . 4 4 1 . . . 2 7 . . . . . . . . . FOLLOW 9 | . . . . . . . 4 3 . . . . 1 1 . . . . . . . . . Ally Attacks 375 | . . . . 1 14 85 89 16 3 . . . 14 60 . 1 . 7 . 1 16 68 . Total Damage 11825 | . . . . 7 355 2668 1905 909 72 . . . 374 1581 . . . 273 . 120 836 2725 . Kills 65 | . . . . . . 18 13 7 1 . . . 7 6 . . . 1 . 1 1 10 . Allies Corrupted 7 | . . . . . . . 2 . . . . . . 1 . . . . . . . 4 . Allies Melted 5 | . . . . . . . . . . . . . . . . . . . . 5 . . . Intel | -11 -10 -10 -7 -5 -5 -5 -5 -5 -5 -5 -4 -4 -4 -4 -4 -3 -3 -2 -2 -2 -1 -1 -1 ------- Run | Yrd Mat Sub Scr Fac Was Fac Ext Cet Arc Hub Fac Was Fac Arm Lab Res Qua Res Tes Frg Acc Com Ac0 Active Infowar (turns) 21296 | 26 792 1258 . 130 113 1175 739 400 879 324 1814 100 1332 989 241 759 945 359 535 3324 429 3615 1018 Optics 13871 | . . . . . . . . 400 879 324 1814 100 1305 828 . . . . . 3159 429 3615 1018 Sensors 5871 | . . . . 62 . 646 517 . . . . . 841 904 241 723 940 359 473 165 . . . A.S.S. 3569 | . . . . . . . . . . . . . . . . . . . . 2652 429 488 . Terrain 102 | 15 29 58 . . . . . . . . . . . . . . . . . . . . . Seismic 2018 | 26 792 1200 . . . . . . . . . . . . . . . . . . . . . Machine Analysis 715 | . . . . 73 113 529 . . . . . . . . . . . . . . . . . Triangulation 653 | . . . . . . . . . . . . . . . . . . . 295 358 . . . Cloaking 1063 | . . . . . . . . . . . . . . . . . . . 12 827 224 . . Jamming 1570 | . . . . . . . 222 . . . . . 661 245 . 64 91 17 . 22 . 248 . ECM 88 | . . . . . . . . . . . . . . . . . 88 . . . . . . Robot Analysis Total 4 | . 1 . . . . . 1 . . . . . . . . . 1 . . 1 . . . Derelict Logs Recovered 6 | . . 1 5 . . . . . . . . . . . . . . . . . . . . Drone Launches . | . . . . . . . . . . . . . . . . . . . . . . . . Drone Recoveries . | . . . . . . . . . . . . . . . . . . . . . . . . Exploration | -11 -10 -10 -7 -5 -5 -5 -5 -5 -5 -5 -4 -4 -4 -4 -4 -3 -3 -2 -2 -2 -1 -1 -1 ------------- Run | Yrd Mat Sub Scr Fac Was Fac Ext Cet Arc Hub Fac Was Fac Arm Lab Res Qua Res Tes Frg Acc Com Ac0 Turns Passed 32213 | 120 874 1592 9296 332 113 1236 927 408 879 373 1829 100 1366 1178 241 792 945 359 535 3483 429 3615 1191 Spaces Moved 23696 | 39 313 686 2062 260 135 2159 928 238 339 188 1016 112 1485 1323 256 764 636 350 701 3551 577 3368 2210 Core 26 | 2 . . . . 24 . . . . . . . . . . . . . . . . . . Treads 3001 | 37 313 438 1666 . . . . 180 339 28 . . . . . . . . . . . . . Legs 1248 | . . . 72 . . . . . . 160 1016 . . . . . . . . . . . . Wheels 248 | . . 248 . . . . . . . . . . . . . . . . . . . . . Hover 16396 | . . . . . . 749 256 58 . . . 112 1485 1323 256 764 636 350 701 3551 577 3368 2210 Flight 2777 | . . . 324 260 111 1410 672 . . . . . . . . . . . . . . . . Fastest Speed 27 | 50 160 150 160 114 34 28 27 56 160 120 120 45 35 35 61 59 59 56 51 36 30 30 29 Average Speed 94 | 154 160 196 440 117 63 36 41 142 160 126 120 45 48 50 66 59 59 58 52 42 34 59 36 Slowest Speed 914 | 160 160 480 914 194 200 45 166 160 160 190 190 45 180 136 136 61 62 136 56 132 102 99 113 Overloaded Moves 7 | . . . . . . . . . . . . . . . . . . . . . . . 7 Propulsion Burnouts . | . . . . . . . . . . . . . . . . . . . . . . . . Robots Hopped 22 | . . . . . . 6 16 . . . . . . . . . . . . . . . . Potential Cave-ins 45 | . . . . . . . 9 . . . . . . . . . 2 . . 19 13 2 . Cave-ins Triggered 2 | . . . . . . . 1 . . . . . . . . . . . . 1 . . . Teleports 4 | . . . . . . . . . . . . . . . . . . . . 1 . 1 2 Exploration Rate (%) 55 | 3 71 38 86 8 93 57 62 73 99 26 18 79 35 53 94 32 59 12 71 86 11 81 90 Regions Visited 23 Branch Regions 13 Pre-discovered Areas 8 | . 1 2 3 . . 1 1 . . . . . . . . . . . . . . . . Known Exits Taken 13 | . . . . . . 1 1 1 . 1 . . 1 1 1 1 1 1 1 1 1 . . Unknown Exits Taken 6 | 1 1 1 1 . . . . . 1 . . . . . . . . . . . . 1 . Scrap Searched 6 | . . . 6 . . . . . . . . . . . . . . . . . . . . Spaces Dug 224 | . . . . 2 . 31 17 . . 3 12 . 17 8 . 13 20 16 10 35 26 13 1 Terrain Destroyed 1881 | . . 3 . 2 . 55 192 2 20 177 182 1 42 151 . 66 25 30 16 543 98 198 78 Melee 48 | . . . . 2 . 29 6 . . . . . . . . . 7 4 . . . . . Projectile 465 | . . . . . . 6 30 2 20 8 14 1 28 18 . 22 18 21 16 101 59 44 57 AOE 1285 | . . 3 . . . 20 156 . . 169 168 . 14 133 . 44 . 3 . 396 30 149 . Terrain Rammed . | . . . . . . . . . . . . . . . . . . . . . . . . Walls Destroyed . | . . . . . . . . . . . . . . . . . . . . . . . . Machines Disabled . | . . . . . . . . . . . . . . . . . . . . . . . . Actions | -11 -10 -10 -7 -5 -5 -5 -5 -5 -5 -5 -4 -4 -4 -4 -4 -3 -3 -2 -2 -2 -1 -1 -1 --------- Run | Yrd Mat Sub Scr Fac Was Fac Ext Cet Arc Hub Fac Was Fac Arm Lab Res Qua Res Tes Frg Acc Com Ac0 Total 31612 | 67 615 843 2272 282 159 2508 1313 305 599 279 1394 147 2037 1765 324 1056 1166 464 837 5163 763 4711 2543 Wait 3836 | 3 220 80 82 6 9 195 193 24 207 30 74 1 247 135 43 130 465 18 45 763 111 747 8 Move 23632 | 38 312 685 2061 260 134 2147 897 237 338 187 1016 111 1484 1322 255 763 635 349 700 3549 576 3367 2209 Hop 18 | . . . . . . 5 13 . . . . . . . . . . . . . . . . Pick Up 411 | 4 5 12 59 2 . 17 7 8 2 4 21 1 30 31 9 17 11 12 13 74 9 48 15 Fast Attach 222 | 7 2 1 5 3 . 26 13 6 8 10 37 2 16 20 . 5 2 . 8 34 . 11 6 Attach 346 | . 1 7 4 3 2 15 6 4 1 1 13 2 41 35 1 22 3 10 7 65 10 34 59 Detach 211 | . 3 1 3 2 5 13 4 4 1 1 5 5 26 26 1 4 2 1 4 29 2 20 49 Swap 246 | 1 . 5 2 2 . 4 2 2 2 9 18 1 20 35 . 27 4 3 6 64 3 15 21 Drop 435 | . 1 4 43 1 3 25 8 12 3 8 32 6 37 30 9 23 12 12 16 89 6 42 13 Fire 1928 | 14 71 48 1 . 6 10 59 8 37 26 175 18 122 105 6 65 22 46 37 436 46 407 163 Melee 135 | . . . 12 3 . 51 49 . . . 2 . . . . . 10 4 . 4 . . . Ram 1 | . . . . . . . . . . . . . 1 . . . . . . . . . . Kick 4 | . . . . . . . . . . 3 1 . . . . . . . . . . . . Crush . | . . . . . . . . . . . . . . . . . . . . . . . . Escape Stasis 110 | . . . . . . . 31 . . . . . 13 . . . . . . 48 . 18 . Rewire 77 | . . . . . . . 31 . . . . . . 26 . . . 9 1 8 . 2 . Trap . | . . . . . . . . . . . . . . . . . . . . . . . . Miscellaneous . | . . . . . . . . . . . . . . . . . . . . . . . . Route ------- -11/Scrapyard -10/Materials (discovered 3 exits: [*Mat] / [*Min] / [*Sub]) -10/Subcaves (discovered 2 exits: [*Mat] / *Scr) -7/Scraptown (discovered 2 exits: *Fac x2) -5/Factory -5/Waste -5/Factory (discovered 5 exits: *Fac / *Upp x2 / *Ext x2) -5/Extension (discovered 3 exits: *Fac x2 / *Cet) -5/Cetus (discovered 2 exits: *Fac / *Arc) -5/Archives (discovered 3 exits: *Fac / *Hub x2) -5/Hub_04(d) (discovered 2 exits: *Fac x2) -4/Factory (discovered 3 exits: *Upp x2 / Arm) -4/Waste -4/Factory (discovered 2 exits: *Upp / *Arm) -4/Armory (discovered 2 exits: *Res / *Lab) -4/Lab -3/Research -3/Quarantine -2/Research (discovered 5 exits: Acc x3 / *Tes x2) -2/Testing (discovered 3 exits: *Acc / [*Sec] / *Frg) -2/Protoforge -1/Access -1/Command (discovered 3 exits: [*Sur x2] / *Ac0) -1/Access_0 0b11 Command History --------- Turn | Location | Event 25 | -11/Scrapyard | Discovered new exit (range 16) 121 | -11/Scrapyard | Entered Materials 328 | -10/Materials | Build established: Mutant 617 | -10/Materials | Discovered new exit (range 16) 765 | -10/Materials | Discovered new exit (range 12) 971 | -10/Materials | Discovered new exit (range 10) 995 | -10/Materials | Entered Subcaves 996 | -10/Subcaves | Approached by a straggling Scientist 1342 | -10/Subcaves | A swath of the cavern ceiling suddenly collapsed 1543 | -10/Subcaves | Core integrity fell below 50% 1604 | -10/Subcaves | Scientist uncovered a shortcut to Scraptown 1743 | -10/Subcaves | Shifting Twisted Machinery released Piercing Trap 1747 | -10/Subcaves | Shifting Twisted Machinery released Sub. Monowheel 1793 | -10/Subcaves | Discovered new exit (range 12) 1806 | -10/Subcaves | Learned location of Zion (-6) 1806 | -10/Subcaves | Met a Zionite searching for "candidates" 2062 | -10/Subcaves | Shifting Twisted Machinery released Sub. Power Source 2064 | -10/Subcaves | Shifting Twisted Machinery released Sub. Laser 2245 | -10/Subcaves | Disturbed a concealed Subdweller 2266 | -10/Subcaves | Shifting Twisted Machinery released Flamer 2587 | -10/Subcaves | Entered Scraptown 2847 | -7/Scraptown | Visited Symbiants 2952 | -7/Scraptown | Visited Awakened 3087 | -7/Scraptown | Visited UFD Registry 3087 | -7/Scraptown | Registered with UFD as "Wavefunk" 3178 | -7/Scraptown | Visited SPCMW 3245 | -7/Scraptown | Visited Junk Repository 3322 | -7/Scraptown | Visited CR-KLE's Repair Center 3471 | -7/Scraptown | Scanned Subdweller tech in exchange for log data 3480 | -7/Scraptown | Learned location of Testing (-2) 3490 | -7/Scraptown | Learned location of Armory (-4) 3499 | -7/Scraptown | Learned Factory interactive machine intel 3547 | -7/Scraptown | Discovered new exit (range 13) 3634 | -7/Scraptown | Guru changed UFD alias to "Protonsourcer" 5042 | -7/Scraptown | Visited Abandonware Association 5095 | -7/Scraptown | Learned abandonware demo "SHUTEYE.EXE" 5095 | -7/Scraptown | Learned abandonware demo "TRNCOAT.EXE" 5201 | -7/Scraptown | Visited A0-MCA Data Center 5278 | -7/Scraptown | Visited Botcube Research 5297 | -7/Scraptown | Found Botcube 5857 | -7/Scraptown | Visited Curators Association 6020 | -7/Scraptown | Visited Supply Room 6092 | -7/Scraptown | Visited Science Testing Area 6285 | -7/Scraptown | Visited Scrapoid Pod Storage 6309 | -7/Scraptown | Found Scrapoid Pod 6468 | -7/Scraptown | Visited Derelict Rescue Squad 6508 | -7/Scraptown | Found DRS Beacon 6720 | -7/Scraptown | Visited Scrap Suit Storage 6987 | -7/Scraptown | Found Scrap Suit 7002 | -7/Scraptown | Found Scrap Suit 8010 | -7/Scraptown | Given a C- rating by A0-MCA 8025 | -7/Scraptown | Found A0-MCA's Component Scanner 8295 | -7/Scraptown | Visited Spacefarers 8372 | -7/Scraptown | Visited Bundlers 10163 | -7/Scraptown | Botcube activated 10183 | -7/Scraptown | Botcube completed mutation into wheeled form, armed with 1 gun, 1 cannon. 10184 | -7/Scraptown | Attached CPS modules to *please don't die. 11377 | -7/Scraptown | CR-KLE repaired 7 parts 11776 | -7/Scraptown | Met Optimus 11776 | -7/Scraptown | Accepted into 0bPrime 11875 | -7/Scraptown | Discovered new exit (range 5) 11883 | -7/Scraptown | Entered Factory 11883 | -5/Factory | Accompanied by 1 ally 11883 | -5/Factory | Evolved 10 slots: Power x1, Propulsion x4, Utility x5 11884 | -5/Factory | Loaded intel: 54 interactive machine locations 11894 | -5/Factory | Build established: Derelict-Mutant 11971 | -5/Factory | Loaded intel: 8 recycling unit locations 12207 | -5/Factory | Build established: Hacker-Mutant 12215 | -5/Factory | Sucked down chute 12215 | -5/Factory | Entered Waste 12216 | -5/Waste | Met a frightened Derelict 12220 | -5/Waste | 1 allies followed down the chute 12230 | -5/Waste | EMP discharged 12230 | -5/Waste | Spotted C-40 Crusher 12247 | -5/Waste | Spotted C-40 Crusher 12250 | -5/Waste | Spotted C-40 Crusher 12312 | -5/Waste | Spotted C-40 Crusher 12312 | -5/Waste | Spotted C-40 Crusher 12323 | -5/Waste | Discovered new exit (range 15) 12323 | -5/Waste | Spotted C-40 Crusher 12328 | -5/Waste | Entered Factory 12387 | -5/Factory | Discovered new exit (range 8) 12431 | -5/Factory | Scrapoid reinforcements arrived 12528 | -5/Factory | Attached CPS modules to 05F02-D. 12531 | -5/Factory | Attached CPS modules to 05F05-D. 12552 | -5/Factory | Loaded intel: 7 recycling unit locations 12552 | -5/Factory | Learned location of Protoforge (-2) 12671 | -5/Factory | Identified exit to Upper Caves 12671 | -5/Factory | Identified exit to Extension 12686 | -5/Factory | Central database locked down 12799 | -5/Factory | Discovered new exit (range 15) 12928 | -5/Factory | First assault squad dispatched 13096 | -5/Factory | Fabricated Adv. Hacking Suite (x1) 13254 | -5/Factory | Fabricated Adv. Hacking Suite? 13564 | -5/Factory | Entered Extension 13634 | -5/Extension | Central database locked down 13758 | -5/Extension | Rescued a captive Derelict 13772 | -5/Extension | Rescued A7 13860 | -5/Extension | Spotted B-75 Beast 14018 | -5/Extension | Crushed by falling debris 14019 | -5/Extension | System corruption reached 10% 14045 | -5/Extension | Rescued a captive Derelict 14086 | -5/Extension | Lost 4 parts (1p2n1w) 14153 | -5/Extension | Scraphulk reinforcements arrived 14164 | -5/Extension | First assault squad dispatched 14174 | -5/Extension | Extracted ID and sensor layout for unrecognized location from A7's data core 14198 | -5/Extension | Learned Research emergency access door positions 14204 | -5/Extension | System corruption reached 30% 14207 | -5/Extension | Found Corrupted Prototype Protection 14210 | -5/Extension | Destroyed 9 combat bots 14246 | -5/Extension | Discovered new exit (range 10) 14246 | -5/Extension | Discovered new exit (range 6) 14249 | -5/Extension | Identified exit to Cetus 14258 | -5/Extension | Learned location of Quarantine (-3) 14277 | -5/Extension | Learned Research stockpile data 14290 | -5/Extension | Learned 2 Proximity Caves zone layouts 14313 | -5/Extension | Identified exit to Factory 14346 | -5/Extension | Learned Factory emergency access door positions 14389 | -5/Extension | Learned location of 2 exits from Upper Caves 14474 | -5/Extension | Disrupted transfer network 14491 | -5/Extension | Entered Cetus 14491 | -5/Cetus | Accompanied by 1 ally 14511 | -5/Cetus | Lost 4 allies 14534 | -5/Cetus | Spotted Cetus Guard 14541 | -5/Cetus | Spotted Cetus Guard 14549 | -5/Cetus | Spotted Cetus Guard 14549 | -5/Cetus | Spotted Cetus Guard 14554 | -5/Cetus | Allies destroyed Cetus Guard 14564 | -5/Cetus | Destroyed Cetus Guard 14564 | -5/Cetus | Allies destroyed Cetus Guard 14566 | -5/Cetus | Destroyed Cetus Guard 14665 | -5/Cetus | Discovered new exit (range 22) 14735 | -5/Cetus | Spotted Cetus Guard 14736 | -5/Cetus | Spotted Cetus Guard 14736 | -5/Cetus | Spotted Cetus Guard 14738 | -5/Cetus | Allies destroyed Cetus Guard 14739 | -5/Cetus | Spotted Cetus Guard 14742 | -5/Cetus | Allies destroyed Cetus Guard 14746 | -5/Cetus | Allies destroyed Cetus Guard 14748 | -5/Cetus | Allies destroyed Cetus Guard 14763 | -5/Cetus | Discovered exit to Factory (range 21) 14781 | -5/Cetus | Met Revision 17 14891 | -5/Cetus | Identified exit to Archives 14899 | -5/Cetus | Entered Archives 14899 | -5/Archives | Accompanied by 1 ally 15087 | -5/Archives | Discovered new exit (range 21) 15178 | -5/Archives | Discovered new exit (range 22) 15208 | -5/Archives | Discovered exit to Factory (range 21) 15647 | -5/Archives | Build established: Scavenger-Mutant 15778 | -5/Archives | Entered Hub_04(d) 15904 | -5/Hub_04(d) | Discovered exit to Factory (range 2) 16010 | -5/Hub_04(d) | Found Prototype Launcher 16010 | -5/Hub_04(d) | Identified Scatter Rocket Array 16011 | -5/Hub_04(d) | Identified Med. Regenerative Plating 16090 | -5/Hub_04(d) | Network Hub disabled 16124 | -5/Hub_04(d) | Spotted Lightning 16134 | -5/Hub_04(d) | Discovered exit to Factory (range 7) 16138 | -5/Hub_04(d) | Spotted Lightning 16147 | -5/Hub_04(d) | Spotted Lightning 16151 | -5/Hub_04(d) | Entered Factory 16151 | -4/Factory | Evolved 2 slots: Utility x2 16152 | -4/Factory | Identified exit to Upper Caves 16152 | -4/Factory | Identified exit to Armory 16193 | -4/Factory | Build established: Hacker-Mutant 16254 | -4/Factory | Destroyed 7 combat bots 16435 | -4/Factory | Found Scatter Rocket Array 16534 | -4/Factory | Repaired Broken Enh. Armored Leg 16615 | -4/Factory | Build established: Wizard-Mutant 16717 | -4/Factory | Found Launcher Loader 16754 | -4/Factory | Repaired Enh. Armored Leg 16813 | -4/Factory | Repaired Broken Enh. Armored Leg 16901 | -4/Factory | First assault squad dispatched 17105 | -4/Factory | Fabricated Gui. EMP Blaster? 17349 | -4/Factory | Build established: Hacker-Mutant 17454 | -4/Factory | Lost 3 parts (1p1u1w) 17511 | -4/Factory | Lost 5 parts (1n2u2w) 17526 | -4/Factory | System corruption reached 10% 17579 | -4/Factory | Lost 4 parts (2n1u1w) 17743 | -4/Factory | Lost 3 parts (3n) 17839 | -4/Factory | Build established: Scavenger-Mutant 17980 | -4/Factory | Sucked down chute 17980 | -4/Factory | Entered Waste 17993 | -4/Waste | Spotted C-40 Crusher 17995 | -4/Waste | EMP discharged 17995 | -4/Waste | Spotted C-40 Crusher 18013 | -4/Waste | Spotted C-40 Crusher 18023 | -4/Waste | Spotted C-40 Crusher 18027 | -4/Waste | Spotted C-40 Crusher 18027 | -4/Waste | Spotted C-40 Crusher 18047 | -4/Waste | Discovered new exit (range 12) 18068 | -4/Waste | Destroyed C-40 Crusher 18080 | -4/Waste | Entered Factory 18212 | -4/Factory | Discovered exit to Upper Caves (range 18) 18283 | -4/Factory | Build established: Mutant 18299 | -4/Factory | Loaded intel: 8 recycling unit locations 18384 | -4/Factory | Fabricated Lrn. Sensor Array? 18812 | -4/Factory | Scraphulk reinforcements arrived? 18986 | -4/Factory | Central database locked down 19073 | -4/Factory | Fabricated Adv. Hacking Suite (x1) 19209 | -4/Factory | Fabricated Adv. System Restoration Module (x2) 19230 | -4/Factory | Repaired Gui. EMP Blaster 19330 | -4/Factory | First assault squad dispatched 19333 | -4/Factory | Repaired Broken Cmb. Linear Gravjet 19414 | -4/Factory | Discovered exit to Armory (range 19) 19439 | -4/Factory | Unchained authorized (6S-H0T) 19446 | -4/Factory | Entered Armory 19529 | -4/Armory | Found Gamma Bomb Array 19534 | -4/Armory | Found Gamma Bomb Array 19684 | -4/Armory | Fabricated Adv. Hacking Suite (x1) 19703 | -4/Armory | Central database locked down 19768 | -4/Armory | Fabricated Prc. Energy Filter (x1) 19793 | -4/Armory | Fabricated Lrg. Storage Unit (x1) 19871 | -4/Armory | Fabricated Gui. EMP Blaster (x1) 19924 | -4/Armory | Fabricated Cmb. Gravmag System (x2) 19978 | -4/Armory | Fabricated Cmb. Gravmag System (x2) 20031 | -4/Armory | Fabricated Adv. Hacking Suite (x1) 20117 | -4/Armory | Unchained authorized (6S-H0T) 20133 | -4/Armory | Fabricated Centrium Medium Armor Plating (x1) 20167 | -4/Armory | Scraphulk reinforcements arrived? 20194 | -4/Armory | Spotted B-86 Titan 20223 | -4/Armory | Core integrity fell below 50% 20272 | -4/Armory | Build established: Machinist-Scout 20363 | -4/Armory | Discovered new exit (range 5) 20496 | -4/Armory | Fabricated Smartbomb Launcher (x1) 20517 | -4/Armory | Fabricated Prc. Energy Filter (x1) 20578 | -4/Armory | Fabricated Cmb. Gravmag System (x2) 20612 | -4/Armory | Fabricated Adv. Field Recycling Unit? 20619 | -4/Armory | Discovered new exit (range 4) 20622 | -4/Armory | Identified exit to Lab 20624 | -4/Armory | Entered Lab 20624 | -4/Lab | Discovered new exit (range 9) 20634 | -4/Lab | Identified exit to Research 20639 | -4/Lab | Build established: Machinist-Mutant 20639 | -4/Lab | Hidden lab's door opened automatically 20639 | -4/Lab | Sensor layout match revealed 20640 | -4/Lab | Gained access to the hidden lab's interior 20685 | -4/Lab | Unable to decrypt terminal 20699 | -4/Lab | Found Prototype Special Weapon 20730 | -4/Lab | Found Prototype Energy Gun 20733 | -4/Lab | Found Prototype Energy Gun 20736 | -4/Lab | Found Prototype Protection 20739 | -4/Lab | Found Prototype Hackware 20785 | -4/Lab | Found Alien Artifact 20792 | -4/Lab | Found Alien Artifact 20797 | -4/Lab | Found Alien Artifact 20865 | -4/Lab | Entered Research 20865 | -3/Research | Evolved 2 slots: Propulsion x1, Utility x1 20888 | -3/Research | Identified Hyp. EM Gauss Rifle 20937 | -3/Research | Identified Quantum Router 20992 | -3/Research | Fabricated Cmb. Gravmag System (x2) 21010 | -3/Research | Fabricated C-55 Analyst (x1) 21025 | -3/Research | Identified Core Regenerator 21025 | -3/Research | Identified Integrated Mediator 21025 | -3/Research | Identified Hvy. Regenerative Plating 21025 | -3/Research | Identified Gui. Remote Datajack 21025 | -3/Research | Identified Tachyon Dispersion Ray 21025 | -3/Research | Identified Transdimensional Reconstructor 21065 | -3/Research | Revision forces began assault on 0b10 21164 | -3/Research | Loaded intel: 5 recycling unit locations 21343 | -3/Research | Met up with Revision 17++ 21355 | -3/Research | Found Prototype Device 21355 | -3/Research | Identified Adv. Kinecellerator 21441 | -3/Research | Installed Integrated Mediator, increased core attachment efficiency 21466 | -3/Research | Lost 4 allies 21503 | -3/Research | Build established: Hacker-Mutant 21565 | -3/Research | Research terminal network offline 21615 | -3/Research | Discovered new exit (range 16) 21630 | -3/Research | Identified exit to Quarantine 21657 | -3/Research | Entered Quarantine 21725 | -3/Quarantine | Found Alien Artifact 21764 | -3/Quarantine | Spotted Alpha 7 21909 | -3/Quarantine | Found Alien Artifact 21913 | -3/Quarantine | Found Alien Artifact 22057 | -3/Quarantine | Identified Dimensional Node Initializer 22057 | -3/Quarantine | Identified Hpw. Transdimensional Reconstructor 22057 | -3/Quarantine | Identified Terrabomb 22080 | -3/Quarantine | Discovered new exit (range 13) 22129 | -3/Quarantine | Repaired Broken Gui. EMP Blaster 22157 | -3/Quarantine | Search patrols dispatched 22176 | -3/Quarantine | Learned Research stockpile data 22254 | -3/Quarantine | Learned Research security intel 22320 | -3/Quarantine | Learned location of 3 exits from Research 22366 | -3/Quarantine | Unchained authorized (CL-0N3) 22376 | -3/Quarantine | Learned Access terminal intel 22422 | -3/Quarantine | Learned Access security intel 22459 | -3/Quarantine | Learned Testing emergency access door positions 22523 | -3/Quarantine | Learned Section 7 non-interactive machine intel 22571 | -3/Quarantine | Learned Testing trap positions 22595 | -3/Quarantine | K-01 Serf reconstituted as Alpha 7 22595 | -3/Quarantine | Spotted Alpha 7 22601 | -3/Quarantine | Identified exit to Research 22602 | -3/Quarantine | Entered Research 22602 | -2/Research | Evolved 2 slots: Propulsion x1, Utility x1 22603 | -2/Research | Identified exit to Access 22603 | -2/Research | Identified exit to Testing 22791 | -2/Research | Unchained authorized (CL-0N3) 22864 | -2/Research | Loaded intel: 5 recycling unit locations 22877 | -2/Research | Fabricated Cmb. Linear Gravjet (x2) 22929 | -2/Research | Loaded intel: 4 repair station locations 22958 | -2/Research | Learned Research security intel 22961 | -2/Research | Entered Testing 22962 | -2/Testing | Loaded intel: 14 trap records 22968 | -2/Testing | Found Prototype Device 22968 | -2/Testing | Identified 2N-1CE's Frost Array 23087 | -2/Testing | Found Faulty Point Singularity Launcher 23141 | -2/Testing | Protovariant out of control (PP-5KZRCVH6W4) 23141 | -2/Testing | Unleashed a protovariant (PP-5KZRCVH6W4) 23177 | -2/Testing | Unchained authorized (CL-0N3) 23181 | -2/Testing | Repaired Launcher Loader 23212 | -2/Testing | Repaired Lrn. Sensor Array 23215 | -2/Testing | Repaired Cmb. Antigrav System+? 23306 | -2/Testing | Found Prototype Launcher 23308 | -2/Testing | Identified Com. Tesla Bomb Launcher 23362 | -2/Testing | Found Prototype Hackware 23378 | -2/Testing | Found Prototype Ballistic Gun 23378 | -2/Testing | Identified Hyp. Multirail 23397 | -2/Testing | Discovered exit to Access (range 12) 23399 | -2/Testing | Identified System Mapper 23419 | -2/Testing | K-01 Serf reconstituted as S7 Guard 23419 | -2/Testing | Spotted S7 Guard 23459 | -2/Testing | Spotted Fortress 23494 | -2/Testing | Discovered new exit (range 6) 23494 | -2/Testing | Discovered new exit (range 6) 23496 | -2/Testing | Identified exit to Protoforge 23496 | -2/Testing | Entered Protoforge 23652 | -2/Protoforge | Used Terrabomb 23655 | -2/Protoforge | Spotted EXE-6 23655 | -2/Protoforge | Spotted EXE-6 23658 | -2/Protoforge | Crushed by falling debris 23661 | -2/Protoforge | Superfortress began startup sequence 23666 | -2/Protoforge | Destroyed EXE-6 23669 | -2/Protoforge | Destroyed EXE-6 23693 | -2/Protoforge | Spotted SKR-2 23695 | -2/Protoforge | Lost 3 parts (1p2u) 23695 | -2/Protoforge | Found Corrupted Prototype Processor 23697 | -2/Protoforge | Found Corrupted Prototype Ballistic Gun 23705 | -2/Protoforge | Spotted SKR-2 23705 | -2/Protoforge | Spotted SKR-2 23715 | -2/Protoforge | Destroyed SKR-2 23716 | -2/Protoforge | Destroyed SKR-2 23717 | -2/Protoforge | Destroyed SKR-2 23737 | -2/Protoforge | UFD initiated attack on Protoforge (Readiness: Adequate) 23737 | -2/Protoforge | Loaded intel: 3 recycling unit locations 23761 | -2/Protoforge | Spotted EXE-6 23761 | -2/Protoforge | Spotted EXE-6 23768 | -2/Protoforge | Found Prototype Ballistic Gun 23768 | -2/Protoforge | Identified Cep. XC Strikerail (x2) 23773 | -2/Protoforge | Optimus greeted in Protoforge 23775 | -2/Protoforge | Found Cep. XC Strikerail 23777 | -2/Protoforge | Found Prototype Processor 23777 | -2/Protoforge | Identified Exp. Armor Integrity Analyzer 23780 | -2/Protoforge | Found Prototype Device 23780 | -2/Protoforge | Identified Exp. Kinecellerator 23885 | -2/Protoforge | Initialized slip node 23905 | -2/Protoforge | Found Prototype Protection 23905 | -2/Protoforge | Identified Cep. Core Shell 23927 | -2/Protoforge | System corruption reached 10% 23947 | -2/Protoforge | Lost 3 allies 23983 | -2/Protoforge | Found Prototype Device 23987 | -2/Protoforge | Found Cep. XC Strikerail 23990 | -2/Protoforge | Spotted Immortal 23990 | -2/Protoforge | Spotted Immortal 24097 | -2/Protoforge | Destroyed Immortal 24110 | -2/Protoforge | Spotted Decapitator 24110 | -2/Protoforge | Spotted Decapitator 24110 | -2/Protoforge | Spotted Decapitator 24173 | -2/Protoforge | Rewired Immortal 24195 | -2/Protoforge | Destroyed Decapitator 24195 | -2/Protoforge | Destroyed Decapitator 24198 | -2/Protoforge | Destroyed Decapitator 24235 | -2/Protoforge | Found Exp. Active Sensor Suite 24326 | -2/Protoforge | Forge Plexus network access discovered 24334 | -2/Protoforge | Found Exp. Remote Shield 24343 | -2/Protoforge | Found Faulty Cep. Reaction Jets 24347 | -2/Protoforge | Identified Crosscalibrator 24352 | -2/Protoforge | Found Faulty Cep. Reaction Jets 24434 | -2/Protoforge | Found Faulty Cep. Rapid Grenade Launcher 24461 | -2/Protoforge | Spotted Striker 24479 | -2/Protoforge | Spotted V303-c 24479 | -2/Protoforge | Spotted V120-z 24496 | -2/Protoforge | Spotted V559-v 24504 | -2/Protoforge | Found Cep. Gyrokinetic System 24511 | -2/Protoforge | Found Cep. Gyrokinetic System 24550 | -2/Protoforge | Spotted Decapitator 24550 | -2/Protoforge | Spotted Decapitator 24555 | -2/Protoforge | Destroyed Decapitator 24580 | -2/Protoforge | Scanned by Researcher 24621 | -2/Protoforge | Spotted V246-g 24626 | -2/Protoforge | Found Prototype Device 24626 | -2/Protoforge | Identified Cep. Antimissile System 24629 | -2/Protoforge | Found Prototype Device 24629 | -2/Protoforge | Identified Exp. Cloaking Device 24631 | -2/Protoforge | Found Cep. Plasma Driver 24648 | -2/Protoforge | Found Cep. Disintegration Ray 24791 | -2/Protoforge | Found Cep. Antigrav Storage Unit 24793 | -2/Protoforge | Found Cep. Matter Streamer 24806 | -2/Protoforge | Found Cep. Chromion Battery 24808 | -2/Protoforge | Found Cep. NT7 Matterbank 24865 | -2/Protoforge | Additional patrols dispatched to research labs 24868 | -2/Protoforge | Found Cep. Nanofilaments [Tensile] 24868 | -2/Protoforge | Installed Cep. Nanofilaments [Tensile], 3 resistances modified: KI +20%, TH -10%, I +20% 24875 | -2/Protoforge | Found Transdimensional Reconstructor 24895 | -2/Protoforge | Spotted AP7-3 24898 | -2/Protoforge | UFD reported confirmed Drillbomb installation 25012 | -2/Protoforge | Spotted AP7-3 25038 | -2/Protoforge | Destroyed AP7-3 25075 | -2/Protoforge | Destroyed AP7-3 25134 | -2/Protoforge | Found Cep. Plasma Driver 25138 | -2/Protoforge | Found Cep. Miniperforator 25140 | -2/Protoforge | Found Cep. Heavy Railcannon 25152 | -2/Protoforge | Found Faulty Cep. Miniperforator 25222 | -2/Protoforge | Found Cep. Cloak Mesh 25319 | -2/Protoforge | Spotted Decapitator 25319 | -2/Protoforge | Destroyed Decapitator 25325 | -2/Protoforge | Spotted V181-y 25325 | -2/Protoforge | Spotted V764-p 25339 | -2/Protoforge | Found Cep. Zero-point Core 25489 | -2/Protoforge | Build established: Machinist-Scout 25551 | -2/Protoforge | Spotted Immortal 25577 | -2/Protoforge | Spotted V224-x 25579 | -2/Protoforge | Warped through subspace 25580 | -2/Protoforge | Found Cep. Weapon Articulator 25722 | -2/Protoforge | Spotted Striker 25723 | -2/Protoforge | Spotted Executioner 25771 | -2/Protoforge | Spotted Executioner 25802 | -2/Protoforge | Used Core Regenerator, restored core integrity (+362) 25804 | -2/Protoforge | Found Exp. Core Analyzer 25853 | -2/Protoforge | Fabricated Adv. System Restoration Module (x2) 25984 | -2/Protoforge | Spotted Striker 25995 | -2/Protoforge | Destroyed Striker 26083 | -2/Protoforge | Spotted Striker 26089 | -2/Protoforge | Destroyed Striker 26190 | -2/Protoforge | Destroyed 7 combat bots 26195 | -2/Protoforge | Lost 4 allies 26210 | -2/Protoforge | Spotted Executioner 26252 | -2/Protoforge | Spotted Executioner 26255 | -2/Protoforge | Destroyed Executioner 26258 | -2/Protoforge | Destroyed Executioner 26286 | -2/Protoforge | Lost 4 allies 26301 | -2/Protoforge | Destroyed 11 combat bots 26306 | -2/Protoforge | UFD reported confirmed Drillbomb installation 26352 | -2/Protoforge | UFD reported confirmed Drillbomb installation 26366 | -2/Protoforge | Build established: Scout 26387 | -2/Protoforge | Spotted Executioner 26387 | -2/Protoforge | Spotted Striker 26387 | -2/Protoforge | Destroyed Striker 26389 | -2/Protoforge | Spotted Executioner 26390 | -2/Protoforge | Destroyed Executioner 26390 | -2/Protoforge | Destroyed Executioner 26393 | -2/Protoforge | Spotted Striker 26393 | -2/Protoforge | Destroyed Striker 26434 | -2/Protoforge | Destroyed 12 combat bots 26479 | -2/Protoforge | UFD reported confirmed Drillbomb installation 26483 | -2/Protoforge | Spotted Hotshot 26487 | -2/Protoforge | Destroyed Hotshot 26488 | -2/Protoforge | Destroyed Hotshot 26508 | -2/Protoforge | Spotted Striker 26510 | -2/Protoforge | Spotted Striker 26514 | -2/Protoforge | Destroyed Striker 26517 | -2/Protoforge | UFD reported confirmed Drillbomb installation 26535 | -2/Protoforge | Destroyed 10 combat bots 26554 | -2/Protoforge | Spotted Executioner 26554 | -2/Protoforge | Spotted Executioner 26556 | -2/Protoforge | Destroyed Executioner 26558 | -2/Protoforge | Destroyed Executioner 26572 | -2/Protoforge | UFD reported confirmed Drillbomb installation 26600 | -2/Protoforge | Spotted Striker 26601 | -2/Protoforge | Destroyed Striker 26611 | -2/Protoforge | Spotted Executioner 26631 | -2/Protoforge | Destroyed Executioner 26639 | -2/Protoforge | Spotted Executioner 26642 | -2/Protoforge | Spotted Executioner 26643 | -2/Protoforge | Destroyed Executioner 26646 | -2/Protoforge | Destroyed Executioner 26673 | -2/Protoforge | UFD reported confirmed Drillbomb installation 26693 | -2/Protoforge | Spotted Executioner 26696 | -2/Protoforge | Spotted Striker 26697 | -2/Protoforge | Destroyed 14 combat bots 26697 | -2/Protoforge | Spotted Executioner 26698 | -2/Protoforge | Spotted Executioner 26700 | -2/Protoforge | Destroyed Striker 26702 | -2/Protoforge | Destroyed Executioner 26704 | -2/Protoforge | Destroyed Executioner 26708 | -2/Protoforge | Destroyed Executioner 26712 | -2/Protoforge | UFD reported confirmed Drillbomb installation 26734 | -2/Protoforge | Spotted Executioner 26738 | -2/Protoforge | Destroyed Executioner 26744 | -2/Protoforge | Spotted Executioner 26746 | -2/Protoforge | Build established: Machinist-Scout 26749 | -2/Protoforge | Destroyed Executioner 26770 | -2/Protoforge | Destroyed 14 combat bots 26797 | -2/Protoforge | Spotted Executioner 26797 | -2/Protoforge | Spotted Striker 26797 | -2/Protoforge | Destroyed Executioner 26800 | -2/Protoforge | Spotted Executioner 26802 | -2/Protoforge | Spotted Striker 26803 | -2/Protoforge | Destroyed Executioner 26812 | -2/Protoforge | UFD reported confirmed Drillbomb installation 26816 | -2/Protoforge | Destroyed Striker 26821 | -2/Protoforge | Spotted Striker 26824 | -2/Protoforge | Spotted Striker 26831 | -2/Protoforge | Destroyed Striker 26864 | -2/Protoforge | Destroyed Striker 26885 | -2/Protoforge | Destroyed 14 combat bots 26892 | -2/Protoforge | Destroyed Striker 26894 | -2/Protoforge | Lost 6 allies 26895 | -2/Protoforge | Destroyed Executioner 26895 | -2/Protoforge | Destroyed Executioner 26901 | -2/Protoforge | Spotted Executioner 26908 | -2/Protoforge | Destroyed Executioner 26913 | -2/Protoforge | Spotted Striker 26915 | -2/Protoforge | Spotted Striker 26957 | -2/Protoforge | Destroyed 18 combat bots 26974 | -2/Protoforge | UFD reported confirmed Drillbomb installation 26975 | -2/Protoforge | UFD began Drillbomb countdown 26979 | -2/Protoforge | Entered Access 26979 | -1/Access | Evolved 2 slots: Power x1, Weapon x1 26981 | -1/Access | Loaded intel: 23 terminal locations 27144 | -1/Access | Spotted B-99 Colossus 27229 | -1/Access | First assault squad dispatched 27284 | -1/Access | Discovered new exit (range 6) 27285 | -1/Access | Identified exit to Command 27309 | -1/Access | High security lockdown imminent 27389 | -1/Access | High security lockdown engaged 27408 | -1/Access | Entered Command 27469 | -1/Command | Destroyed Executioner 27488 | -1/Command | Spotted M Guard 27498 | -1/Command | Destroyed M Guard 27504 | -1/Command | Spotted Combat Programmer 27504 | -1/Command | Spotted M Guard 27519 | -1/Command | Destroyed 8 combat bots 27520 | -1/Command | Spotted Combat Programmer 27527 | -1/Command | High security lockdown imminent 27527 | -1/Command | Destroyed Combat Programmer 27531 | -1/Command | Destroyed Combat Programmer 27548 | -1/Command | Destroyed M Guard 27548 | -1/Command | All MAIN.C guards destroyed 27607 | -1/Command | High security lockdown engaged 27632 | -1/Command | Spotted Striker 27634 | -1/Command | Spotted Striker 27647 | -1/Command | Destroyed Striker 27648 | -1/Command | Destroyed Striker 27655 | -1/Command | Lost 8 allies 27678 | -1/Command | Lost 4 parts (1p1n1u1w) 27763 | -1/Command | Destroyed 37 combat bots 27796 | -1/Command | Spotted Investigator 27809 | -1/Command | Destroyed Investigator 27820 | -1/Command | Spotted Executioner 27823 | -1/Command | Destroyed Executioner 27850 | -1/Command | Destroyed 19 combat bots 27908 | -1/Command | Met MAIN.C 27909 | -1/Command | 0b10 Conduit disabled 27930 | -1/Command | Destroyed MAIN.C Shell 27933 | -1/Command | MAIN.C activated Command garrisons 27945 | -1/Command | Destroyed MAIN.C 27951 | -1/Command | Discovered new exit (range 32) 27951 | -1/Command | Discovered new exit (range 83) 27951 | -1/Command | Extracted map data and part IDs from MAIN.C's data core 27976 | -1/Command | Spotted B-99 Colossus 28195 | -1/Command | Build established: Scavenger-Sprinter 28207 | -1/Command | Found Exp. System Purifier 28799 | -1/Command | Found Quantum Capacitor 28801 | -1/Command | Found Quantum Capacitor 28938 | -1/Command | Build established: Scavenger-Gunner 30056 | -1/Command | Found Exp. Target Analyzer 30209 | -1/Command | Found Null Cannon 30228 | -1/Command | Found Zero-point Reactor 30230 | -1/Command | Found Exp. Targeting Computer 30241 | -1/Command | Found Zero-point Reactor 30974 | -1/Command | Found Centrium Heavy Armor Plating 30999 | -1/Command | Warped through subspace to slip node 30999 | -1/Command | Discovered new exit (range 4) 31023 | -1/Command | Entered Access_0 31025 | -1/Access_0 | Met Architect 31026 | -1/Access_0 | Architect warped through subspace 31053 | -1/Access_0 | Architect warped through subspace 31054 | -1/Access_0 | Destroyed A8 31069 | -1/Access_0 | Subspace Access Node disabled 31085 | -1/Access_0 | Architect warped through subspace 31120 | -1/Access_0 | Architect warped through subspace 31139 | -1/Access_0 | A6 warped into view 31147 | -1/Access_0 | Destroyed A6 31161 | -1/Access_0 | Found Hpw. Transdimensional Reconstructor 31245 | -1/Access_0 | A5 warped into view 31263 | -1/Access_0 | Destroyed A5 31270 | -1/Access_0 | Architect warped through subspace 31333 | -1/Access_0 | Found Sigix Corpse 31377 | -1/Access_0 | Subspace Access Node disabled 31433 | -1/Access_0 | Found Integrity Redistributor 31439 | -1/Access_0 | A4 warped into view 31444 | -1/Access_0 | Architect warped through subspace 31459 | -1/Access_0 | Destroyed A4 31496 | -1/Access_0 | Architect warped through subspace 31522 | -1/Access_0 | Architect warped through subspace 31535 | -1/Access_0 | Subspace Access Node disabled 31542 | -1/Access_0 | Architect warped through subspace 31549 | -1/Access_0 | Used Integrity Redistributor, redistributed integrity from core (-381) 31550 | -1/Access_0 | Core integrity fell below 50% 31556 | -1/Access_0 | Architect warped through subspace 31595 | -1/Access_0 | Architect warped through subspace 31612 | -1/Access_0 | Found Exp. Weapon Cycler 31620 | -1/Access_0 | Architect warped through subspace 31640 | -1/Access_0 | Destroyed A2 31642 | -1/Access_0 | Architect warped through subspace 31651 | -1/Access_0 | Found Exp. Targeting Computer 31653 | -1/Access_0 | Found Prototype Device 31653 | -1/Access_0 | Identified Desublimator 31658 | -1/Access_0 | Extracted Singularity Gate Test 138-C access codes from A2's data core 31670 | -1/Access_0 | Destroyed 11 combat bots 31675 | -1/Access_0 | Singularity Gate disabled 31681 | -1/Access_0 | Architect warped through subspace 31707 | -1/Access_0 | Architect warped through subspace 31726 | -1/Access_0 | Architect warped through subspace 31761 | -1/Access_0 | Architect warped through subspace 31762 | -1/Access_0 | Subspace Access Node disabled 31797 | -1/Access_0 | Core integrity fell below 20% 31824 | -1/Access_0 | Destroyed Architect 31868 | -1/Access_0 | Extracted unknown sensor trigger ID from Architect's data core 31872 | -1/Access_0 | Found Exp. Phase Shifter 31874 | -1/Access_0 | Found Hpw. Transdimensional Reconstructor 31883 | -1/Access_0 | Destroyed 10 combat bots 31892 | -1/Access_0 | Build established: Scavenger-Mutant 31915 | -1/Access_0 | A3 warped into view 31925 | -1/Access_0 | Destroyed A3 31990 | -1/Access_0 | Found Exp. Shield Generator 32083 | -1/Access_0 | Found Exp. Weapon Cycler 32209 | -1/Access_0 | Warped through subspace to slip node 32209 | -1/Access_0 | Discovered new exit (range 8) 32211 | -1/Access_0 | Warped through subspace to slip node 32214 | *** | Establishing 0b11! Last Messages --------------- (Destroy). 32074_ Enhanced Hunter destroyed. 32075_ Acquired 2 matter. 32106_ F1N8RDQE#PPZB8DRTH=LLVYYN0B#JASDQAOGAF E 32188_ System corrupted: Component data lost. 32198_ HV Slug penetrates Wall. 32198_ HV Slug penetrates Enhanced Sentry. 32198_ Enhanced Sentry suffers critical hit (Destroy). 32198_ Destroyed Adv. Point Defense System. 32198_ HV Slug penetrates Wall. 32198_ Enhanced Sentry suffers critical hit (Destroy). 32201_ Acquired 2 matter. 32209_ Warped through subspace, drawn to slip node. 32209_ EXIT=FOUND 32211_ Warped through subspace, drawn to slip node. [Achievement: Unfinished Business] Map ----- +----------------------------------------------------+ | | | | | | | | | | | | | | | | | | | | | | | | | | | | | | | | | ?????????????????????????????????????????????????? | | ?????????????????????????????????????????????????? | | ?????????????????????????????????????????????????? | | ?????????????????????????????????????????????????? | | ?????????????????????????????????????????????????? | | ?????????????????????????????????????????????????? | | ????????????????????????###??????????????????????? | | ???????????????????????## ##?????????????????????? | | ???????????????????????# #?????????????????????? | | ???????????????????????# @ #?????????????????????? | | ??????????????????????## #?????????????????????? | | ??????????????????????# #?????????????????????? | | ??????????????????????# ##?????????????????????? | | ??????????????????????## #?????????????????????? | | ??????????????????????# #?????????????????????? | | ??????????????????????# ##?????????????????????? | | ??????????????????????# < #?????????????????????? | | ??????????????????????# ##?????????????????????? | | ??????????????????????## #??????????????????????? | | ???????????????????????####??????????????????????? | | ?????????????????????????????????????????????????? | | ?????????????????????????????????????????????????? | | ?????????????????????????????????????????????????? | | ?????????????????????????????????????????????????? | | ?????????????????????????????????????????????????? | | ?????????????????????????????????????????????????? | | ?????????????????????????????????????????????????? | | ?????????????????????????????????????????????????? | | ?????????????????????????????????????????????????? | | ?????????????????????????????????????????????????? | | ?????????????????????????????????????????????????? | | ?????????????????????????????????????????????????? | | ?????????????????????????????????????????????????? | | ?????????????????????????????????????????????????? | +----------------------------------------------------+ Best States ------------- Heat Dissipation 152 Energy Generation 72 Energy Capacity 2700 Matter Stores 300 Matter Capacity 300 Sight Range 23 Robot Scan Range 20 Terrain Scan Range 16 Terrain Scan Density 10 ECM Strength 2 Jamming Range 16 Cloak Strength 6 Power Amplification 30 Additional Mass Support 16 EM Shielding 4 Armor Coverage 900 Resistance: KI 20 Resistance: I 20 Core Shielding 90 Utility Shielding 66 Weapon Shielding 90 Weapon Cycling 30 Phase Shifting 15 Evasion (%) 91 Targeting Accuracy 42 Target Analysis 10 Core Analysis 8 Armor Integrity Analysis 50 Recoil Reduction 5 Energy Filtering 75 Particle Charging 25 Kinecelleration 66 Salvage Targeting 3 Offensive Hacking 48 Defensive Hacking 28 Authchip Count 5 Item Schematics ----------------- Adv. Hacking Suite | -5/Factory | Hacked Adv. System Restoration Module | -5/Factory | Hacked Hyp. Coil Gun | -5/Factory | Hacked Enh. Force Lance | -5/Factory | Hacked Lrn. Terrain Scanner | -5/Factory | Hacked Smartbomb Launcher | -5/Factory | Scanalyzed Mni. Drone Bay | -5/Factory | Extracted Lgt. Fission Core | -5/Factory | Extracted Force Field | -5/Factory | Extracted Spear | -5/Factory | Extracted Lgt. Angular Momentum Engine | -5/Factory | Extracted Linear Gravjet | -5/Factory | Extracted Imp. Datajack | -5/Factory | Extracted Energy Filter | -5/Factory | Extracted Hvy. Machine Gun | -5/Factory | Extracted Imp. Thermal Shield | -5/Factory | Extracted Mic. Fission Core | -5/Factory | Extracted Imp. Medium Armor Plating | -5/Factory | Extracted Lrn. Sensor Array | -5/Factory | Hacked Prc. Energy Filter | -5/Extension | Hacked Gui. EMP Blaster | -5/Extension | Hacked Nuclear Pulse Array | -5/Extension | Hacked Imp. Remote Force Field | -5/Extension | Hacked Adv. Medium Treads | -5/Extension | Hacked Adv. Reaction Control System | -5/Extension | Hacked Adv. Field Recycling Unit | -5/Extension | Hacked Adv. Variable Charge Gun | -4/Factory | Scanalyzed Enh. Armored Leg | -4/Factory | Scanalyzed Centrium Medium Armor Plating | -4/Factory | Scanalyzed Adv. Gravity Neutralizer | -4/Factory | Scanalyzed Scatter Rocket Array | -4/Factory | Scanalyzed Cmb. Gravmag System | -4/Armory | Hacked Lrg. Storage Unit | -4/Armory | Hacked Graphene Brace | -3/Research | Scanalyzed Adv. Transmission Jammer | -3/Research | Scanalyzed Adv. ECM Suite | -3/Research | Scanalyzed Adv. Corruption Screen | -3/Research | Scanalyzed Gamma Bomb Array | -3/Research | Scanalyzed Coolant Network | -3/Quarantine | Scanalyzed Adv. Melee Analysis Suite | -3/Quarantine | Scanalyzed Nanosword | -3/Quarantine | Scanalyzed Lgt. Quantum Reactor | -3/Quarantine | Hacked Nanoactuators | -3/Quarantine | Hacked Cmb. Linear Gravjet | -3/Quarantine | Scanalyzed Launcher Loader | -3/Quarantine | Scanalyzed Point Singularity Launcher | -2/Research | Hacked Quantum Reactor | -2/Research | Hacked Exp. Optical Array | -2/Testing | Scanalyzed Vortex Chain Reactor | -2/Testing | Hacked Exp. Signal Interpreter | -2/Testing | Hacked Lgt. Antimatter Cannon | -2/Protoforge | Archive Helical Railgun | -2/Protoforge | Archive Adv. EM Disruption Field | -2/Protoforge | Archive Vibroblade | -2/Protoforge | Archive Electron Diverter | -2/Protoforge | Archive Robot Schematics ------------------ X-87 Electro | -2/Protoforge | Archive Fabricated ------------ Adv. Hacking Suite | x1 | -5/Factory Adv. Hacking Suite | x1 | -5/Factory Gui. EMP Blaster | x1 | -4/Factory Lrn. Sensor Array | x2 | -4/Factory Adv. Hacking Suite | x1 | -4/Factory Adv. System Restoration Module | x2 | -4/Factory Adv. Hacking Suite | x1 | -4/Armory | Authchip Prc. Energy Filter | x1 | -4/Armory | Authchip Lrg. Storage Unit | x1 | -4/Armory | Authchip Gui. EMP Blaster | x1 | -4/Armory | Authchip Cmb. Gravmag System | x2 | -4/Armory | Authchip Cmb. Gravmag System | x2 | -4/Armory | Authchip Adv. Hacking Suite | x1 | -4/Armory | Authchip Centrium Medium Armor Plating | x1 | -4/Armory | Authchip Smartbomb Launcher | x1 | -4/Armory | Authchip Prc. Energy Filter | x1 | -4/Armory | Authchip Cmb. Gravmag System | x2 | -4/Armory Adv. Field Recycling Unit | x2 | -4/Armory Cmb. Gravmag System | x2 | -3/Research C-55 Analyst | x1 | -3/Research | Preloaded Cmb. Linear Gravjet | x2 | -2/Research Adv. System Restoration Module | x2 | -2/Protoforge Repaired ---------- Enh. Armored Leg | 99% | -4/Factory | Broken Enh. Armored Leg | 60% | -4/Factory Enh. Armored Leg | 66% | -4/Factory | Broken Gui. EMP Blaster | 19% | -4/Factory Cmb. Linear Gravjet | 30% | -4/Factory | Broken Gui. EMP Blaster | 63% | -3/Quarantine | Broken Launcher Loader | 60% | -2/Testing Lrn. Sensor Array | 22% | -2/Testing Cmb. Antigrav System | 61% | -2/Testing Studied --------- Cesium-ion Thruster | -5/Factory | Hacked Flight Unit | -5/Factory | Hacked HERF Cannon | -4/Factory | Hacked Matter Neutralizer | -4/Factory | Hacked Imp. Antigrav System | -4/Factory | Hacked Antigrav System | -4/Factory | Hacked Imp. Linear Gravjet | -4/Factory | Hacked Gyrokinetic Inverter | -4/Factory | Hacked Cmb. Gravmag System | -3/Research | Hacked Cmb. Linear Gravjet | -3/Research | Hacked Cmb. Antigrav System | -3/Research | Hacked Gamma Bomb Array | -3/Research | Hacked Smartbomb Launcher | -3/Quarantine | Hacked Lgt. Quantum Reactor | -2/Testing | Hacked Alien Tech Used ----------------- Integrated Mediator Terrabomb Dimensional Node Initializer Concept Nanofilaments [Tensile] High-powered Transdimensional Reconstructor Core Regenerator Transdimensional Reconstructor Integrity Redistributor Achievements -------------- Frankenstein Longdome?! Low-level Research Nice Directions, Buddy Red Leader Unfinished Business We Are One Challenges ------------ None Game ------ Seed BoreInsulationNukerbomber Manual? 0 Play Time 10:12:13 Cumulative 435.1 hours Start 2025.11.13 @ 03:30:46 End 2025.11.14 @ 00:18:16 Sessions 5 Manual Loads 0 Difficulty Rogue Special Mode None Game No. 186 Rogue 178 Adventurer 8 Explorer 0 Win Type 1 Total 29 Types 14/2/4/3/0/1/1/1/2/1 Lore% 91 Gallery% 90 Achievement% 80 Wizard Run 0 Options --------- Layout 2 ASCII 0 Keyboard 1 Movement Numpad Keybinds 1 Fullscreen 2 Font 24/Smallcaps Map View 50x44 Zoom Use 0% Tactical HUD 1 Map Filters NONE Filters NONE Steam 1 RUN: 7fcaee0b-ba8f-411c-8c63-75632ac01c73